Cogmind - Beta 9.6 @@@ ROGUE MODE // 2020.08.23 @ 20:33:48 Player: MTF Result: Destroyed by S-43 Plague with Heavy Machine Gun Performance ------------- Evolutions (9) 4500 Regions Visited (32) 6400 Robots Destroyed (773) 3865 Value Destroyed (39457) 39457 Prototype IDs (74) 1480 Alien Tech Used (9) 1800 Bonus (32778) 32778 TOTAL SCORE: 90280 Bonus ------- Triggered High Security 500 High Alert Combat Kills 13537 Follower Combat Kills 845 Entered Garrisons 400 Used RIF Installer 1000 Network Hubs Disabled 400 Aligned with FarCom 300 Met Imprinter 300 Destroyed Z-Imprinter 1000 Exposed GOLEM Chamber 5000 Met R17 at Cetus 500 Found Hidden Lab 3000 Used Core Reset Matrix 3000 Scanned by Researcher 1000 Pursued by Intercept 500 Met MAIN.C 5000 Friendly Fire -3504 Cogmind --------- Core Integrity 0/1600 Matter 270/300 Energy 97/100 System Corruption 0% Temperature Cool (0) Movement Core (200) Ox3 Location -1/Command Parts ------- > --- POWER (2) -------- (None) > --- PROPULSION (5) --- (None) > --- UTILITY (15) ----- (None) > --- WEAPON (3) ------- Linked Autogun > --- INVENTORY (4) ---- (None) Peak State ------------ > --- POWER ------------ Light Quantum Reactor Light Quantum Reactor > --- PROPULSION ------- Centrium Leg Centrium Leg Centrium Leg High-density Centrium Leg High-density Centrium Leg > --- UTILITY ---------- Experimental Heat Sink High-capacity Storage Unit High-capacity Storage Unit High-capacity Storage Unit Assembled Biocell Array Assembled Combat Suite Matter Filter Experimental Powered Armor SHELL Armor Experimental Thermal Shield AEGIS Remote Shield Matter Drive > --- WEAPON ----------- Null Cannon Omega Cannon > --- INVENTORY -------- Light Quantum Reactor Light Quantum Reactor Centrium Leg Fusion Compressor Advanced Coolant Injector Zionite Biocell Zionite Biocell Zionite Biocell YI-UF0's Bottomless Matter Pit Experimental Actuator Array Advanced Force Field Advanced Force Field Proton Cannon Proton Cannon Long-range Proton Cannon Linked Autogun Perforator [Rating: 236] Favorites ----------- Power Assembled Flux Generator Engine Heavy Ion Engine Power Core Fission Core Reactor Assembled Flux Generator Propulsion Assembled Alloy Leg Treads Light Treads Leg Assembled Alloy Leg Flight Unit Impulse Thruster Array Utility High-capacity Storage Unit Device GOLEM Unit Storage High-capacity Storage Unit Processor Advanced Targeting Computer Hackware Deep Network Scanner Protection Assembled Alloy Armor Artifact Phase Armor Weapon Assembled Focal Cannon Energy Gun EM Pulse Gun Energy Cannon Assembled Focal Cannon Ballistic Gun Enhanced Autogun Ballistic Cannon Perforator Launcher Rocket Launcher Special Weapon Remote Datajack Impact Weapon Impact Mace Slashing Weapon Great Axe Build | -11 -10 -10 -9 -9 -9 -8 -8 -7 -7 -7 -7 -7 -6 -6 -6 -6 -6 -5 -5 -5 -5 -5 -4 -4 -4 -3 -3 -2 -2 -2 -1 -1 ------- Run | Scr Mat Min Mat Min Exi Min Mat Fac Low Low Zio Dee Pro Fac Gar Fac Gar Fac Ext Cet Arc Hub Fac Arm Lab Res Qua Res Tes Sec Acc Com Slots Evolved 18 | . . . 2 . . . 2 2 . . . . . 2 . . . 2 . . . . 2 . . 2 . 2 . . 2 . Power 1 | . . . . . . . . . . . . . . 1 . . . . . . . . . . . . . . . . . . Propulsion 3 | . . . . . . . 1 . . . . . . . . . . . . . . . . . . . . . . . 2 . Utility 13 | . . . 2 . . . 1 2 . . . . . . . . . 2 . . . . 2 . . 2 . 2 . . . . Weapon 1 | . . . . . . . . . . . . . . 1 . . . . . . . . . . . . . . . . . . Parts Attached 440 | . 9 . 18 3 29 14 22 30 22 23 4 22 6 1 2 1 2 6 14 12 . 8 19 22 6 4 6 10 17 27 16 65 Power 19 | . . . 2 . 1 . . . 1 2 1 . . . . . . . . 3 . . . . . . . . . 2 2 5 Engine 4 | . . . 2 . . . . . 1 1 . . . . . . . . . . . . . . . . . . . . . . Core 3 | . . . . . 1 . . . . 1 1 . . . . . . . . . . . . . . . . . . . . . Reactor 12 | . . . . . . . . . . . . . . . . . . . . 3 . . . . . . . . . 2 2 5 Propulsion 53 | . 2 . 4 . 4 1 6 7 . 4 . 1 . . . . . . . 1 . . 1 2 . . . 4 2 . 4 10 Treads 27 | . 2 . 4 . 2 1 6 7 . 4 . . . . . . . . . . . . . . . . . . . . . 1 Leg 22 | . . . . . 2 . . . . . . 1 . . . . . . . 1 . . 1 2 . . . 4 2 . 4 5 Wheel . | . . . . . . . . . . . . . . . . . . . . . . . . . . . . . . . . . Hover . | . . . . . . . . . . . . . . . . . . . . . . . . . . . . . . . . . Flight 4 | . . . . . . . . . . . . . . . . . . . . . . . . . . . . . . . . 4 Utility 230 | . 5 . 3 2 9 2 6 13 10 5 2 15 1 . 1 1 1 4 10 7 . 8 17 17 4 4 6 6 13 17 2 39 Device 80 | . . . . . 1 1 2 4 4 2 . 3 1 . . . . 1 3 1 . 3 4 7 . 2 . 1 9 6 1 24 Storage 45 | . 5 . 1 1 4 . 1 . . . 2 4 . . . . . . 1 2 . 2 8 . 2 1 . 1 . 6 1 3 Processor 10 | . . . . . 1 . 1 3 . . . . . . . . . 1 . . . . 2 . . . 1 1 . . . . Hackware 4 | . . . . . . . . . . . . . . . . . . 1 . . . . . 1 . . 1 . . 1 . . Protection 86 | . . . 2 1 3 1 2 6 6 3 . 8 . . 1 1 1 1 6 4 . 3 3 9 2 1 4 2 2 3 . 11 Artifact 5 | . . . . . . . . . . . . . . . . . . . . . . . . . . . . 1 2 1 . 1 Weapon 138 | . 2 . 9 1 15 11 10 10 11 12 1 6 5 1 1 . 1 2 4 1 . . 1 3 2 . . . 2 8 8 11 Energy Gun 23 | . 2 . 6 . 5 3 . . . . . 2 3 . . . . . . . . . . . 2 . . . . . . . Energy Cannon 22 | . . . . . 3 2 . . 1 1 . . . 1 . . . 1 2 . . . . . . . . . 2 4 3 2 Ballistic Gun 39 | . . . 1 . 5 3 7 5 5 6 . 1 . . . . . . . . . . 1 . . . . . . . 2 3 Ballistic Cannon 14 | . . . . . 1 . . . . . . . . . . . . . . . . . . . . . . . . 4 3 6 Launcher 28 | . . . 2 1 1 3 3 3 3 4 1 1 2 . 1 . 1 . 1 1 . . . . . . . . . . . . Special Weapon 5 | . . . . . . . . . . . . . . . . . . 1 1 . . . . 3 . . . . . . . . Impact Weapon 1 | . . . . . . . . 1 . . . . . . . . . . . . . . . . . . . . . . . . Slashing Weapon 6 | . . . . . . . . 1 2 1 . 2 . . . . . . . . . . . . . . . . . . . . Piercing Weapon . | . . . . . . . . . . . . . . . . . . . . . . . . . . . . . . . . . Special Melee Weapon . | . . . . . . . . . . . . . . . . . . . . . . . . . . . . . . . . . Unidentified Prototypes 32 | . . . 2 1 3 . 1 2 . . . 6 . . . . . . 1 1 . . . . 5 . 2 . 3 3 2 . Parts Lost 70 | . 1 . 6 . 11 1 1 1 1 11 . . 2 . 1 1 1 . . 2 . 5 . . . 1 3 . 1 3 . 17 Power 6 | . . . . . 1 . . . 1 2 . . . . . . . . . . . . . . . . . . . . . 2 Propulsion 16 | . . . 3 . 2 . 1 1 . 4 . . . . . . . . . . . . . . . . . . . . . 5 Utility 29 | . . . . . 4 . . . . 2 . . 2 . 1 1 1 . . . . 3 . . . 1 1 . 1 3 . 9 Weapon 19 | . 1 . 3 . 4 1 . . . 3 . . . . . . . . . 2 . 2 . . . . 2 . . . . 1 Highest Loss Streak 10 | . 1 . 3 . 10 1 1 1 1 4 . . 2 . 1 1 1 . . 1 . 3 . . . 1 2 . 1 1 . 6 Average Slot Usage (%) 90 | . 99 100 99 100 93 94 98 98 100 96 92 95 91 86 85 85 85 88 87 92 86 88 88 88 86 84 84 85 87 81 84 81 Engine 1 | . 14 14 11 11 6 . . . 5 2 1 . . . . . . . . . . . . . . . . . . . . . Core 2 | . . . . . 3 11 9 7 1 4 5 7 7 . . . . . . . . . . . . . . . . . . . Reactor 3 | . . . . . . . . . . . . . . 5 6 6 6 5 5 10 5 5 5 5 5 4 4 4 4 7 8 7 Treads 8 | . 28 28 22 22 13 22 27 22 23 22 23 17 . . . . . . . . . . . . . . . . . . . . Leg 10 | . . . . . 7 . . . . . . 4 23 20 19 20 20 17 17 17 15 17 14 14 15 14 14 13 13 13 20 18 Device 7 | . . . . . 2 4 2 7 5 1 . 4 6 6 6 6 6 11 9 5 5 8 9 7 13 11 10 15 13 14 15 13 Storage 23 | . 27 28 33 33 27 33 27 23 23 23 23 21 24 26 26 26 26 23 23 22 23 23 22 21 15 19 19 18 21 17 16 18 Processor 7 | . . . . . 4 1 5 13 23 20 15 13 5 . . . . 5 5 5 5 5 10 15 15 14 10 8 8 4 4 3 Protection 7 | . . . 10 11 7 5 9 6 1 5 7 9 7 6 5 5 6 4 6 10 11 6 8 7 6 6 7 7 5 11 12 12 Energy Gun 3 | . 21 28 21 11 10 10 . . . . . 3 4 . . . . . . . . . . . . . . . . . . . Energy Cannon 7 | . . . . . . . . . . . . 1 7 20 19 20 19 16 12 16 16 17 14 14 13 14 14 13 13 4 . 3 Ballistic Gun 2 | . 6 . . . 1 6 16 14 13 13 13 3 . . . . . . . . . . . . . . . . . . . . Launcher 1 | . . . . 10 6 . . . . . 1 2 2 . . . . . . . . . . . . . . . . . . . Naked Turns 87 | . . . . . . . . . . . . . . . . . . . . . . . . . . . . . . . . 87 Heaviest Build 277 | 13 73 73 115 117 127 131 133 127 114 115 119 130 142 187 187 175 175 180 180 181 181 181 200 195 195 200 200 234 277 239 227 242 Greatest Support 156 | 20 40 40 40 40 60 40 60 60 60 63 63 88 88 88 88 88 88 88 88 88 88 88 98 90 100 90 90 90 94 104 156 156 Greatest Overweight (x) 14 | . 1 1 2 2 14 6 2 2 1 2 1 1 1 2 2 1 1 2 2 2 2 2 3 3 2 2 3 3 3 2 1 3 Average Overweight (x) 1 | . . 1 2 2 1 3 1 1 1 1 1 1 1 1 1 1 1 1 1 1 2 1 1 2 1 2 2 2 2 2 1 . Largest Inventory Capacity 36 | 6 20 20 28 28 28 28 28 26 26 26 26 26 26 26 26 26 26 26 26 26 26 26 28 28 28 28 28 36 36 36 28 28 Average Capacity 26 | 6 16 20 28 28 23 28 27 26 26 26 25 25 26 26 26 26 26 26 26 26 26 26 27 28 20 28 28 29 36 28 28 26 Most Carried 36 | 6 19 19 28 28 28 28 28 26 26 26 25 26 26 26 26 26 26 25 26 26 26 26 27 28 28 27 28 33 36 35 28 28 Average Carried 24 | 6 12 19 22 27 22 25 27 25 25 20 21 23 25 24 25 25 24 24 25 25 25 24 25 26 19 26 27 28 34 26 23 24 Final Capacity 36 | 6 20 20 28 28 28 28 26 26 26 26 26 26 26 26 26 26 26 26 26 26 26 26 28 28 28 28 28 36 36 28 28 4 Final Carried 34 | 6 19 19 27 28 28 25 26 26 26 16 25 26 23 26 26 25 26 25 24 26 26 22 27 27 28 27 28 31 34 26 26 . Class Distribution -------------------- 46% | Hauler-Mutant 36% | Hauler-Golem 9% | Scavenger-Mutant Dominant Class ---------------- Hauler-Mutant | -10/Materials Hauler-Mutant | -10/Mines Hauler-Mutant | -9/Materials Hauler-Mutant | -9/Mines Hauler-Mutant | -9/Exiles Hauler-Mutant | -8/Mines Hauler-Mutant | -8/Materials Hauler-Mutant | -7/Factory Hauler-Mutant | -7/Lower Caves Hauler-Mutant | -7/Lower Caves Hauler-Mutant | -7/Zion Hauler-Mutant | -7/Deep Caves Hauler-Golem | -6/Proximity Caves Hauler-Golem | -6/Factory Hauler-Golem | -6/Garrison Hauler-Golem | -6/Factory Hauler-Golem | -6/Garrison Hauler-Golem | -5/Factory Hauler-Golem | -5/Extension Hauler-Golem | -5/Cetus Hauler-Golem | -5/Archives Hauler-Golem | -5/Hub_04(d) Hauler-Golem | -4/Factory Hauler-Golem | -4/Armory Golem | -4/Lab Hauler-Mutant | -3/Research Hauler-Golem | -3/Quarantine Hauler-Golem | -2/Research Hauler-Mutant | -2/Testing Hauler-Mutant | -2/Section 7 Scavenger-Mutant | -1/Access Scavenger-Mutant | -1/Command Resources | -11 -10 -10 -9 -9 -9 -8 -8 -7 -7 -7 -7 -7 -6 -6 -6 -6 -6 -5 -5 -5 -5 -5 -4 -4 -4 -3 -3 -2 -2 -2 -1 -1 ----------- Run | Scr Mat Min Mat Min Exi Min Mat Fac Low Low Zio Dee Pro Fac Gar Fac Gar Fac Ext Cet Arc Hub Fac Arm Lab Res Qua Res Tes Sec Acc Com Matter Collected 20377 | 200 145 . 224 178 1331 176 932 951 605 901 176 812 183 39 53 60 89 84 246 154 106 92 202 287 . 130 80 115 203 3967 3540 4116 Remotely . | . . . . . . . . . . . . . . . . . . . . . . . . . . . . . . . . . Salvage Created 41955 | . 671 . 1632 113 614 133 1107 922 449 1076 . 1382 504 720 727 1118 932 86 897 1003 388 1126 1614 1773 . 792 2374 1040 2530 4868 2938 8426 Parts 1883 | . 34 . 87 4 64 11 66 64 31 46 . 23 26 36 39 59 39 5 40 45 12 43 79 89 . 41 130 51 129 197 89 304 Haulers Intercepted 17 | . 2 . 4 . . . 4 . . . . . . . . 1 . . . . . 2 1 . . . . 1 2 . . . Recyclers Shooed 13 | . 2 . 3 . . 1 . . . . . . . . . 1 . . . . . . 2 . . . . 1 . . 2 1 Parts Field Recycled . | . . . . . . . . . . . . . . . . . . . . . . . . . . . . . . . . . Retrieved Matter . | . . . . . . . . . . . . . . . . . . . . . . . . . . . . . . . . . Parts Self-Destructed 50 | . . . . . . . . . 15 27 2 . 6 . . . . . . . . . . . . . . . . . . . Prevented . | . . . . . . . . . . . . . . . . . . . . . . . . . . . . . . . . . Kills | -11 -10 -10 -9 -9 -9 -8 -8 -7 -7 -7 -7 -7 -6 -6 -6 -6 -6 -5 -5 -5 -5 -5 -4 -4 -4 -3 -3 -2 -2 -2 -1 -1 ------- Run | Scr Mat Min Mat Min Exi Min Mat Fac Low Low Zio Dee Pro Fac Gar Fac Gar Fac Ext Cet Arc Hub Fac Arm Lab Res Qua Res Tes Sec Acc Com Combat Hostiles Destroyed 610 | . 9 . 24 2 8 10 21 14 14 26 . 15 15 10 15 15 18 1 11 16 4 12 23 32 . 15 32 9 31 60 30 118 Melee 12 | . . . . . . . . . . . . 9 . . . . . . . . . . . 2 . . . . . . 1 . Guns 85 | . 9 . 15 . 2 . 10 12 7 19 . . . . . . . . . . . . . . . . . . . . 4 7 Cannons 424 | . . . . . . 2 . . . . . . 8 9 12 14 14 1 9 12 4 11 18 30 . 15 32 8 30 60 24 111 AOE 84 | . . . 9 2 6 8 11 2 7 7 . 5 7 1 3 1 4 . 2 3 . 1 5 . . . . . . . . . Classes Destroyed 31 | . 8 . 1 1 2 . 1 1 3 1 . 2 . 1 . . . . . . . . 1 2 . . . . 2 2 1 2 Worker 29 | . 1 . 2 . . . 5 3 . . . . . 2 . 5 . . 1 . . 2 . . . . . 1 2 . 1 4 Builder 12 | . 1 . 1 . . 1 1 1 . . . . . . . . . . 1 . . 3 . . . . . . 1 1 1 . Tunneler 2 | . . . . . . . . . . . . . . 1 . . . . . . . . . . . . . . . . 1 . Hauler 17 | . 2 . 4 . . . 4 . . . . . . . . 1 . . . . . 2 1 . . . . 1 2 . . . Recycler 29 | . 1 . 5 . . . 2 2 . . . . . 1 . 1 . . 2 . . . 2 . . . . 2 1 1 7 2 Carrier 2 | . . . . . . . . . . . . . . . . . . . . . . . 1 . . . . . . . . 1 Mechanic 6 | . . . . . . . . . . . . . . . . . . . . . . . . . . . . . . 1 1 4 Operator 12 | . 1 . 3 . . . 1 1 . . . . . . . . . 1 . . . . . . . . 1 . 1 1 . 2 Turret 1 | . . . . . 1 . . . . . . . . . . . . . . . . . . . . . . . . . . . Watcher 31 | . 3 . 3 . . . 3 1 . . . . . . . 1 . . . 2 . 1 2 2 . 1 3 1 3 1 . 4 Swarmer 106 | . 3 . 7 . . 6 4 3 4 3 . . . . 4 1 4 . 4 . . . 9 5 . 9 . . 9 10 9 12 Saboteur 8 | . . . . . . . . . . . . . . . . . . . . . . . . 5 . . . . . . 1 2 Grunt 211 | . 6 . 14 . . 3 11 1 6 13 . . 8 4 8 6 6 . 2 6 . 3 3 7 . 3 17 . 6 20 8 50 Brawler 24 | . . . . . . . . . 1 4 . . . . . 1 2 . . 1 . . . 1 . . . . . 2 2 10 Duelist 15 | . . . . . . . . . . 1 . . 2 1 . 2 . . . . . . . . . 1 . . . . 1 7 Protector 4 | . . . . . . . . . . . . . . . . . . . . . . . . . . . . . . 1 . 3 Researcher 2 | . . . . . . . . . . . . . . . . . . . . . . . . . . . . . 1 1 . . Sentry 54 | . . . 3 . . . 5 6 . 3 . . . . 2 2 5 1 3 . 4 3 5 1 . . . 2 . 5 . 4 Specialist 2 | . . . . . . . . . . . . . . . . . . . . . . . . 2 . . . . . . . . Hunter 47 | . . . . . . . 1 1 . . . . . 2 . 2 . . 1 . . 6 2 3 . . 5 . 6 13 2 3 Programmer 83 | . . . . . . . . 3 . . . . . 3 1 1 1 . . 1 . . 4 9 . 2 10 7 9 8 3 21 Q-Series 1 | . . . . . . . . . . . . . . . . . . . . . . . . . . . . . . . 1 . Behemoth 2 | . . . . . . . . . 1 1 . . . . . . . . . . . . . . . . . . . . . . Cetus Guard 8 | . . . . . . . . . . . . . . . . . . . . 8 . . . . . . . . . . . . S7 Guard 1 | . . . . . . . . . . . . . . . . . . . . . . . . . . . . . . 1 . . Enhanced Grunt 2 | . . . . . . . . . . . . 2 . . . . . . . . . . . . . . . . . . . . Tracker 1 | . . . . . . . . . . . . . . . . . . . . . . . . . . . . . . . 1 . Combat Programmer 4 | . . . . . . . . . . . . . . . . . . . . . . . . . . . . . . . 2 2 Investigator 1 | . . . . . . . . . . . . . . . . . . . . . . . . . . . . . . . . 1 Striker 2 | . . . . . . . . . . . . . . . . . . . . . . . . . . . . . . . . 2 Executioner 2 | . . . . . . . . . . . . . . . . . . . . . . . . . . . . . . . . 2 Alpha 7 1 | . . . . . . . . . . . . . . . . . . . . . . . . . . . . . 1 . . . Zionite 8 | . . . . . 8 . . . . . . . . . . . . . . . . . . . . . . . . . . . Z-Light 3 | . . . . . . . . . . . . 3 . . . . . . . . . . . . . . . . . . . . Master Thief 9 | . . . . . . . . . 2 2 . . 5 . . . . . . . . . . . . . . . . . . . Assembled 11 | . . . . 2 7 . . . . . . 2 . . . . . . . . . . . . . . . . . . . . Golem 10 | . . . . . . . . . . . . 10 . . . . . . . . . . . . . . . . . . . . Thug 1 | . . . . . . . . . . . . . . . . . . . 1 . . . . . . . . . . . . . Savage 1 | . . . . . . . . . . . . . . . . . . . 1 . . . . . . . . . . . . . Guerrilla 1 | . . . . . . . . . . . . 1 . . . . . . . . . . . . . . . . . . . . Best Kill Streak 23 | . 6 . 6 2 7 6 16 4 6 9 . 3 5 4 4 10 4 1 6 5 2 5 10 5 . 9 5 3 6 11 8 23 Combat Bots Only 22 | . 3 . 5 2 6 5 12 3 6 9 . 3 5 4 4 4 4 1 5 4 2 4 6 5 . 9 5 2 5 11 6 22 Max Kills in Single Turn 7 | . 2 . 3 2 2 3 4 2 3 2 . 2 2 3 3 7 2 1 2 2 1 2 5 2 . 1 1 2 2 3 4 5 Gunslinging 1 | . . . . . . . . . 1 . . . . . . . . . . . . . . . . . . . . . . . Exploded 3 | . . . 3 2 2 3 2 2 3 2 . 2 2 1 3 1 2 . 2 2 . 1 3 . . . . . . . . . Melee 1 | . . . . . . . . . . . . 1 . . . . . . . . . . . 1 . . . . . . 1 . Uniques/NPCs Destroyed 5 | . . . . 1 1 1 . . . . . 1 . . . . . . . 1 . . . . . . . . . . . . YI-UF0 (-9/Mines) 8R-AWN (-9/Exiles) EX-HEX (-9/Exiles) EX-DEC (-9/Exiles) EX-BIN (-9/Exiles) ME-RLN (-8/Mines) Z-Imprinter (-7/Deep Caves) Revision 17 (-5/Cetus) Combat | -11 -10 -10 -9 -9 -9 -8 -8 -7 -7 -7 -7 -7 -6 -6 -6 -6 -6 -5 -5 -5 -5 -5 -4 -4 -4 -3 -3 -2 -2 -2 -1 -1 -------- Run | Scr Mat Min Mat Min Exi Min Mat Fac Low Low Zio Dee Pro Fac Gar Fac Gar Fac Ext Cet Arc Hub Fac Arm Lab Res Qua Res Tes Sec Acc Com Damage Taken 36863 | . 389 . 574 53 1185 272 1263 1003 743 2070 . 352 716 287 849 691 1003 89 743 1970 351 1681 1194 1359 . 866 2649 526 2235 2111 1173 8466 Core 4167 | . 14 . 54 . 171 32 66 54 143 196 . . 158 28 61 18 47 . 86 207 30 193 109 108 . 69 186 98 186 252 121 1480 Absorbed by Shields 10775 | . . . . . . . . 270 . . . . . . 30 . . . . . . . . . . . . . 1516 1896 1120 5943 Redirected to Core 263 | . . . . . . . . . . . . . . . . . . . . . . . . . . . . . 146 117 . . Core Remaining (%) 70 | 100 . 94 . . . 35 88 . . . . . 21 . . . 81 . . . . 48 . . 100 . 80 . . 53 . . Volleys Fired 2018 | . 42 . 77 6 103 16 58 70 48 89 . 15 41 23 38 42 34 16 57 61 12 56 67 83 3 81 179 70 179 113 98 241 Largest 3 | . 2 . 2 2 2 1 2 2 2 2 . 2 2 3 3 3 3 2 3 3 3 3 3 3 1 3 3 3 3 3 1 2 Hottest 230 | . 80 . 80 80 120 120 60 50 120 120 . 120 85 75 75 75 75 81 81 81 75 75 75 75 25 75 75 75 130 130 130 230 Shots Fired 3227 | . 84 . 148 10 178 21 104 133 74 169 . 25 54 55 89 92 84 18 89 119 34 139 127 192 3 93 199 95 299 154 98 248 Gun 943 | . 84 . 142 8 149 5 92 129 59 160 . 20 14 . . . . . . . . . . . . . . . . . 27 54 Cannon 2174 | . . . . . 23 11 . . 9 1 . . 29 55 87 92 81 15 67 114 34 139 127 182 3 93 199 95 299 154 71 194 Launcher 77 | . . . 6 2 6 5 12 4 6 8 . 5 11 . 2 . 3 . 2 5 . . . . . . . . . . . . Special 33 | . . . . . . . . . . . . . . . . . . 3 20 . . . . 10 . . . . . . . . Kinetic 842 | . 21 . . . 57 1 91 129 59 160 . 14 . . . . . . . . . . . . . . . . . 75 85 150 Thermal 1907 | . . . . . 19 11 . . 9 1 . . 29 55 87 92 81 11 64 107 34 139 127 182 3 93 199 95 281 77 13 98 Explosive 77 | . . . 6 2 6 5 12 4 6 8 . 5 11 . 2 . 3 . 2 5 . . . . . . . . . . . . Electromagnetic 368 | . 63 . 142 8 96 4 1 . . . . 6 14 . . . . 4 3 7 . . . . . . . . 18 2 . . Robot Hit Streak 59 | . 17 . 12 10 22 6 17 24 13 32 . 6 8 12 15 9 17 4 15 21 14 28 29 37 . 18 37 30 28 59 21 46 Robot Miss Streak 21 | . 4 . 3 . 3 3 3 3 3 3 . 2 6 3 2 3 2 1 3 4 1 1 1 4 . 4 2 2 3 21 13 10 Penetration Max 3 | . . . . . . . . . . . . . . . . . . . . . . . . . . . . . . 2 2 3 Secondary Targets 5 | . . . . . . . 1 . 1 3 . . . . . . . . . . . . . . . . . . . . . . Max Gunslinging Chain 1 | . . . . . . . 1 . 1 1 . . . . . . . . . . . . . . . . . . . . . . Capacitor 301 | . . . . . . . . . . . . . . . . . . . . 7 . . . . . 75 163 56 . . . . Autonomous 4 | . . . . . . 4 . . . . . . . . . . . . . . . . . . . . . . . . . . Shots Hit Robots 2194 | . 51 . 103 9 127 11 74 97 49 130 . 75 32 34 59 39 51 7 59 78 25 67 72 124 . 44 149 52 158 127 84 207 Core Hits 1671 | . 26 . 56 3 53 12 59 47 30 83 . 67 30 19 23 30 26 3 20 48 10 29 48 46 . 21 62 25 75 169 174 377 Critical Hits 495 | . 1 . . . . . 2 . 1 . . 2 . . . . . . . . . . . . . . . . . 118 99 272 Critical Kills 191 | . 1 . . . . . . . . . . . . . . . . . . . . . . . . . . . . 56 32 102 Critical Parts Destroyed 265 | . . . . . . . 2 . 1 . . 2 . . . . . . . . . . . . . . . . . 51 56 153 Melee Attacks 87 | . . . . . . . . 4 8 5 . 70 . . . . . . . . . . . . . . . . . . . . Impact 3 | . . . . . . . . 3 . . . . . . . . . . . . . . . . . . . . . . . . Slashing 84 | . . . . . . . . 1 8 5 . 70 . . . . . . . . . . . . . . . . . . . . Piercing . | . . . . . . . . . . . . . . . . . . . . . . . . . . . . . . . . . Sneak Attacks 4 | . . . . . . . . . . . . 4 . . . . . . . . . . . . . . . . . . . . Combat Hostiles . | . . . . . . . . . . . . . . . . . . . . . . . . . . . . . . . . . Follow-up Attacks . | . . . . . . . . . . . . . . . . . . . . . . . . . . . . . . . . . Damage Inflicted 91404 | . 821 . 2122 316 2368 959 2786 2250 1922 3554 . 4069 2479 2085 2661 2820 2433 260 2025 4457 1063 3856 4542 6006 . 2085 7217 2623 7597 2982 2367 10679 Guns 12116 | . 703 . 1307 95 1010 . 1199 1694 757 2044 . 224 102 . . . . . . . . . . . . . . . . . 979 2002 Cannons 62008 | . . . . . 722 301 . . 348 36 . . 990 1649 2410 1717 2154 173 1749 3438 1063 3328 3645 5962 . 2085 7217 2623 7365 2982 1388 8663 Explosions 13825 | . 93 . 764 221 636 605 1577 542 817 1474 . 621 1387 436 251 1096 279 87 276 1019 . 528 897 44 . . . . 175 . . . Melee 3224 | . . . . . . . . . . . . 3224 . . . . . . . . . . . . . . . . . . . . Ramming 231 | . 25 . 51 . . 53 10 14 . . . . . . . 7 . . . . . . . . . . . . 57 . . 14 Kinetic 14259 | . 136 . . . 696 . 1199 1694 757 2044 . 118 . . . . . . . . . . . . . . . . . 714 2179 4722 Thermal 60274 | . 93 . 411 68 913 396 . 140 348 36 . 80 1212 1867 2410 2813 2154 171 1660 3320 1063 3328 4418 5962 . 2085 7217 2623 7122 2233 188 5943 Explosive 9539 | . . . 353 153 391 510 1577 402 817 1474 . 541 1165 218 251 . 279 . 276 1019 . . . 44 . . . . 69 . . . Electromagnetic 3877 | . 567 . 1307 95 368 . . . . . . 106 102 . . . . 89 89 118 . 528 124 . . . . . 349 35 . . Impact . | . . . . . . . . . . . . . . . . . . . . . . . . . . . . . . . . . Slashing 3224 | . . . . . . . . . . . . 3224 . . . . . . . . . . . . . . . . . . . . Piercing . | . . . . . . . . . . . . . . . . . . . . . . . . . . . . . . . . . Highest Corruption 8 | . . . . . 3 5 . 3 3 3 3 . . 3 3 3 3 . 1 3 3 5 . 4 4 3 3 1 8 8 . . Average Corruption 3 | . . . . . 2 4 . 2 3 3 3 . . 1 3 3 3 . 1 2 3 3 . 2 4 2 1 1 3 8 . . Corruption Purged . | . . . . . . . . . . . . . . . . . . . . . . . . . . . . . . . . . Effects 341 | . . . . . 14 10 . 17 18 12 7 . . 6 20 12 23 . . 15 14 15 . 18 16 1 14 3 48 58 . . Message Errors 77 | . . . . . 3 1 . 5 4 2 2 . . 1 5 3 4 . . . 5 4 . 4 6 . 5 1 10 12 . . Matter Fused 70 | . . . . . 8 3 . 1 4 2 1 . . 1 5 3 6 . . 6 3 5 . 2 2 1 2 . 5 10 . . Heat Flow Errors 37 | . . . . . 2 1 . 1 3 . 1 . . . 4 . 6 . . 1 1 . . 3 2 . 1 . 8 3 . . Energy Discharges 49 | . . . . . 1 2 . 5 1 3 . . . 2 4 1 1 . . 3 1 1 . 3 1 . 2 2 10 6 . . Parts Rejected 1 | . . . . . . . . . . . . . . . . . . . . . . . . . . . . . . 1 . . Data Loss (minor) 42 | . . . . . . 2 . . 3 1 3 . . 2 2 3 3 . . 2 2 1 . 2 5 . . . 6 5 . . Data Loss (major) 2 | . . . . . . . . . . . . . . . . . . . . . . . . . . . . . . 2 . . Misfires 4 | . . . . . . 1 . . . . . . . . . . . . . . . . . . . . . . 1 2 . . Targeting Errors 52 | . . . . . . . . 4 2 4 . . . . . 2 3 . . 3 2 3 . 3 . . 3 . 7 16 . . Weapon Failures 7 | . . . . . . . . 1 1 . . . . . . . . . . . . 1 . 1 . . 1 . 1 1 . . Overload Shots . | . . . . . . . . . . . . . . . . . . . . . . . . . . . . . . . . . Overflow Damage 3753 | . . . 66 8 82 31 4 28 65 13 . 9 110 225 34 352 21 2 40 141 8 171 289 562 . 100 436 142 317 92 40 365 Projectiles 2920 | . . . . . 62 . . . 13 . . . 90 47 34 30 20 2 30 120 8 150 277 562 . 100 436 142 300 92 40 365 Explosions 816 | . . . 66 8 20 31 4 28 52 13 . 9 20 178 . 322 1 . 10 21 . 21 12 . . . . . . . . . Melee 17 | . . . . . . . . . . . . . . . . . . . . . . . . . . . . . 17 . . . Knockbacks 226 | . . . . . 2 . . . . . . . . . . . . . . . . . . . . . . . 1 55 54 114 Impact 1 | . . . . . . . . . . . . . . . . . . . . . . . . . . . . . 1 . . . Kinetic 208 | . . . . . 2 . . . . . . . . . . . . . . . . . . . . . . . . 51 51 104 Secondary 17 | . . . . . . . . . . . . . . . . . . . . . . . . . . . . . . 4 3 10 Self-Inflicted Damage 1265 | . 74 . 110 44 56 82 142 . . 139 . 27 118 . 38 56 . . . . . 182 147 . . . . . . 50 . . Shots 32 | . 2 . 4 1 2 3 5 . . 4 . 1 3 . 1 1 . . . . . 2 2 . . . . . . 1 . . Rammed 13 | . 4 . 2 . . 2 . 1 . . . . . . . 1 . . . . . . . . . . 1 . . . . 2 Targets Rammed 18 | . 5 . 3 . . 2 1 1 . . . . . . . 1 . . . . . . . . . . 1 . 1 . . 3 Kicked 2 | . . . . . . . . . . . . . . . . . . . . . . . . . . . . . 1 . . 1 Crushed 3 | . 1 . 1 . . . 1 . . . . . . . . . . . . . . . . . . . . . . . . . Highest Temperature 448 | . 120 . 150 96 264 448 267 152 330 80 166 198 231 15 220 21 247 122 78 315 279 33 4 264 135 3 116 . 224 303 12 330 Average Temperature 63 | . 46 . 44 46 115 220 78 49 93 24 85 65 93 4 36 6 71 66 14 74 155 15 2 91 81 3 71 . 89 78 5 48 Received Heat Transfer 4510 | . 120 . 165 . 20 9 378 226 150 549 . 66 231 36 264 123 297 18 81 144 36 198 153 66 . 42 363 36 131 116 40 452 Effects 13 | . . . . . . 4 4 . . . . . 3 . . . 1 . . . 1 . . . . . . . . . . . Shutdowns 1 | . . . . . . 1 . . . . . . . . . . . . . . . . . . . . . . . . . . Energy Bleed 2 | . . . . . . . 1 . . . . . 1 . . . . . . . . . . . . . . . . . . . Interference 7 | . . . . . . . 3 . . . . . 2 . . . 1 . . . 1 . . . . . . . . . . . Matter Decay 1 | . . . . . . 1 . . . . . . . . . . . . . . . . . . . . . . . . . . Short Circuit 1 | . . . . . . 1 . . . . . . . . . . . . . . . . . . . . . . . . . . Damage (major) 1 | . . . . . . 1 . . . . . . . . . . . . . . . . . . . . . . . . . . Siege Activations . | . . . . . . . . . . . . . . . . . . . . . . . . . . . . . . . . . Robots Corrupted 7 | . 1 . 1 . 1 . . . . . . 1 . . . . . . . 1 . 1 . . . . . . 1 . . . Combat Hostiles 3 | . . . . . . . . . . . . 1 . . . . . . . 1 . . . . . . . . 1 . . . Parts Fried 27 | . 6 . 6 1 4 . . . . . . . . . . . . 1 . 1 . 4 2 . . . . . 2 . . . Impact Corruptions 2 | . 1 . . . . . . . . . . . . . . . . . . . . . . . . . . . 1 . . . Robots Melted 1 | . . . . . . . . . . . . . . . . . . . . . . . . . . . . 1 . . . . Combat Hostiles 1 | . . . . . . . . . . . . . . . . . . . . . . . . . . . . 1 . . . . Parts Melted 54 | . . . . . 7 . . . . . . . . 3 3 . . . 4 . 2 5 4 3 . 4 1 3 12 1 . 2 Heat Transferred 34264 | . 150 . 350 50 1540 500 . 100 720 80 . 50 775 1025 1117 1675 1122 150 975 1800 600 1800 2475 2975 . 1050 3800 1325 3825 1350 100 2785 Parts Sabotaged 6 | . . . . . . . . . . . . . . . . . . . . . . . . 3 . . . . . . 1 2 Parts Stolen 10 | . . . . . . . . . 2 4 . . 4 . . . . . . . . . . . . . . . . . . . Parts Stripped . | . . . . . . . . . . . . . . . . . . . . . . . . . . . . . . . . . Power Chain Reactions 21 | . 2 . 7 1 5 . . . . . . 1 2 . . . . . . . . . 2 . . . . . 1 . . . Missiles Intercepted . | . . . . . . . . . . . . . . . . . . . . . . . . . . . . . . . . . Alert | -11 -10 -10 -9 -9 -9 -8 -8 -7 -7 -7 -7 -7 -6 -6 -6 -6 -6 -5 -5 -5 -5 -5 -4 -4 -4 -3 -3 -2 -2 -2 -1 -1 ------- Run | Scr Mat Min Mat Min Exi Min Mat Fac Low Low Zio Dee Pro Fac Gar Fac Gar Fac Ext Cet Arc Hub Fac Arm Lab Res Qua Res Tes Sec Acc Com Peak Influence 3393 | . 169 31 481 187 . 258 527 224 . . . . . 328 710 929 1102 630 406 340 196 752 768 716 . 437 544 211 703 1756 1642 3393 Average Influence 455 | . 41 31 216 151 . 153 174 97 . . . . . 163 586 626 865 319 234 166 71 254 474 381 . 183 186 89 315 939 1253 1813 Maximum Alert Level 5 | . . . 2 . . 1 2 1 . . . . . 1 3 3 4 2 2 1 . 3 3 3 . 2 2 1 3 5 5 5 Low Security (%) 42 | 100 100 100 46 100 . 69 74 98 . . . . . 58 . . . 49 32 50 100 27 6 8 . 56 68 93 29 . . . Level 1 23 | . . . 40 . . 30 14 1 . . . . . 41 22 8 . 14 66 49 . 58 45 53 . 37 14 6 43 7 . . Level 2 13 | . . . 12 . . . 10 . . . . . . . 21 75 19 35 1 . . 13 26 36 . 6 17 . 26 30 . . Level 3 9 | . . . . . . . . . . . . . . . 56 15 70 . . . . . 21 . . . . . . 25 10 20 Level 4 7 | . . . . . . . . . . . . . . . . . 9 . . . . . . . . . . . . 29 85 37 Level 5 . | . . . . . . . . . . . . . . . . . . . . . . . . . . . . . . 7 3 2 High Security 3 | . . . . . . . . . . . . . . . . . . . . . . . . . . . . . . . . 39 Max Security . | . . . . . . . . . . . . . . . . . . . . . . . . . . . . . . . . . Squads Dispatched 105 | . 1 . 3 . . 1 2 3 . 1 . . . 2 . 2 . . 4 . . 5 3 7 . . 7 4 7 13 8 32 Investigation 4 | . . . . . . 1 . . . . . . . . . . . . 1 . . . 1 1 . . . . . . . . Extermination 34 | . . . . . . . . 2 . . . . . 2 . 1 . . . . . . 2 4 . . 5 4 5 3 2 4 Reinforcement 30 | . 1 . 3 . . . 2 1 . . . . . . . . . . 3 . . 5 . 1 . . 2 . 2 7 . 3 Assault 33 | . . . . . . . . . . 1 . . . . . . . . . . . . . 1 . . . . . 3 3 25 Garrison 1 | . . . . . . . . . . . . . . . . 1 . . . . . . . . . . . . . . . . Intercept 3 | . . . . . . . . . . . . . . . . . . . . . . . . . . . . . . . 3 . Construction Impeded 6 | . . . . . . . 1 . . . . . . . . . . . 1 . . 2 . . . . . . . 2 . . Haulers Reinforced 1 | . . . . . . . . 1 . . . . . . . . . . . . . . . . . . . . . . . . Stealth | -11 -10 -10 -9 -9 -9 -8 -8 -7 -7 -7 -7 -7 -6 -6 -6 -6 -6 -5 -5 -5 -5 -5 -4 -4 -4 -3 -3 -2 -2 -2 -1 -1 --------- Run | Scr Mat Min Mat Min Exi Min Mat Fac Low Low Zio Dee Pro Fac Gar Fac Gar Fac Ext Cet Arc Hub Fac Arm Lab Res Qua Res Tes Sec Acc Com Distress Signals 27 | . . . 3 . . . 2 1 . . . . . . . 3 1 . 2 2 . 1 . 2 . . . . 1 4 2 3 Communications Jammed 1 | . . . . . . . . . . . . . . . . . . . . . . . . . . . . . 1 . . . Distress Signals . | . . . . . . . . . . . . . . . . . . . . . . . . . . . . . . . . . Times Spotted 949 | . 22 . 39 6 34 13 33 22 14 30 . 18 17 10 16 22 19 3 28 20 7 21 26 50 . 19 43 11 44 76 43 243 Peak Tracking Total 30 | . 3 . 5 2 12 4 10 4 5 7 . 6 4 4 4 4 6 2 6 5 1 4 6 6 . 6 6 2 5 11 8 30 Tactical Retreats 55 | . 3 . 2 . 4 . 1 . . 2 . 1 1 . 1 3 1 . . 2 . 1 . 3 . . 3 . 1 2 5 19 Traps | -11 -10 -10 -9 -9 -9 -8 -8 -7 -7 -7 -7 -7 -6 -6 -6 -6 -6 -5 -5 -5 -5 -5 -4 -4 -4 -3 -3 -2 -2 -2 -1 -1 ------- Run | Scr Mat Min Mat Min Exi Min Mat Fac Low Low Zio Dee Pro Fac Gar Fac Gar Fac Ext Cet Arc Hub Fac Arm Lab Res Qua Res Tes Sec Acc Com Traps Triggered 22 | . 1 . . . . . . . . . . . . . 4 1 5 . . . . . 2 . . . . 1 1 6 1 . Indirectly . | . . . . . . . . . . . . . . . . . . . . . . . . . . . . . . . . . Trap Hack Attempts . | . . . . . . . . . . . . . . . . . . . . . . . . . . . . . . . . . Triggered . | . . . . . . . . . . . . . . . . . . . . . . . . . . . . . . . . . Disarmed . | . . . . . . . . . . . . . . . . . . . . . . . . . . . . . . . . . Reprogrammed . | . . . . . . . . . . . . . . . . . . . . . . . . . . . . . . . . . Reused . | . . . . . . . . . . . . . . . . . . . . . . . . . . . . . . . . . Traps Extracted . | . . . . . . . . . . . . . . . . . . . . . . . . . . . . . . . . . Installed . | . . . . . . . . . . . . . . . . . . . . . . . . . . . . . . . . . Triggered . | . . . . . . . . . . . . . . . . . . . . . . . . . . . . . . . . . Machines | -11 -10 -10 -9 -9 -9 -8 -8 -7 -7 -7 -7 -7 -6 -6 -6 -6 -6 -5 -5 -5 -5 -5 -4 -4 -4 -3 -3 -2 -2 -2 -1 -1 ---------- Run | Scr Mat Min Mat Min Exi Min Mat Fac Low Low Zio Dee Pro Fac Gar Fac Gar Fac Ext Cet Arc Hub Fac Arm Lab Res Qua Res Tes Sec Acc Com Machines Disabled 109 | . 2 . 4 . 5 3 2 4 . 1 . 2 . 10 5 9 2 4 4 2 2 10 12 4 1 . 4 . 10 6 . 1 Max in Single Turn 8 | . 1 . 1 . 1 3 1 4 . 1 . 1 . 8 1 4 1 3 3 1 1 4 6 1 1 . 1 . 1 1 . 1 Garrison Access 3 | . . . . . . . 1 . . . . . . . . . . . . . . . . . . 1 . . 1 . . . Garrison Relay 2 | . . . . . . . . . . . . . . . 2 . . . . . . . . . . . . . . . . . Network Hub 2 | . . . . . . . . . . . . . . . . . . . . . . 2 . . . . . . . . . . Energy Cycler 1 | . . . . . . . . . . . . . . . . . . . 1 . . . . . . . . . . . . . Machines Sabotaged . | . . . . . . . . . . . . . . . . . . . . . . . . . . . . . . . . . Garrisons Compromised . | . . . . . . . . . . . . . . . . . . . . . . . . . . . . . . . . . Overloaded Fab Kills . | . . . . . . . . . . . . . . . . . . . . . . . . . . . . . . . . . Fab Network Shutdowns 1 | . . . . . . . . . . . . . . . . . . . . . . . . . . . . . 1 . . . Hacking | -11 -10 -10 -9 -9 -9 -8 -8 -7 -7 -7 -7 -7 -6 -6 -6 -6 -6 -5 -5 -5 -5 -5 -4 -4 -4 -3 -3 -2 -2 -2 -1 -1 --------- Run | Scr Mat Min Mat Min Exi Min Mat Fac Low Low Zio Dee Pro Fac Gar Fac Gar Fac Ext Cet Arc Hub Fac Arm Lab Res Qua Res Tes Sec Acc Com Machines Accessed 89 | . 2 . 2 . 2 1 4 6 . . . . . 4 . 6 . 3 4 5 . 3 5 4 1 5 8 4 13 2 3 2 Terminals 71 | . 2 . 2 . . 1 3 5 . . . . . 2 . 5 . 3 4 5 . 3 4 3 . 3 7 4 8 2 3 2 Fabricators 2 | . . . . . . . . . . . . . . 1 . . . . . . . . . . . . . . 1 . . . Repair Stations 4 | . . . . . . . . 1 . . . . . . . . . . . . . . 1 1 . . . . 1 . . . Recycling Units . | . . . . . . . . . . . . . . . . . . . . . . . . . . . . . . . . . Scanalyzers 4 | . . . . . . . . . . . . . . . . . . . . . . . . . . 1 1 . 2 . . . Garrison Access 5 | . . . . . . . 1 . . . . . . 1 . 1 . . . . . . . . . 1 . . 1 . . . Total Hacks 336 | . 4 . 5 . 2 7 13 13 . . . . . 9 . 15 . 6 12 13 . 5 30 14 19 16 48 16 63 6 16 4 Successful 162 | . 4 . 3 . 2 2 8 5 . . . . . 3 . 8 . 4 6 2 . 1 10 5 19 10 20 6 35 3 5 1 Failed 173 | . . . 2 . . 4 5 8 . . . . . 6 . 7 . 2 6 11 . 4 20 9 . 6 28 10 28 3 11 3 Catastrophic 44 | . . . 1 . . . 1 6 . . . . . 1 . 3 . . 1 6 . . 3 4 . 2 5 1 1 1 5 3 Database Lockouts 1 | . . . . . . 1 . . . . . . . . . . . . . . . . . . . . . . . . . . Manual 172 | . 2 . 3 . 1 7 9 10 . . 5 . . 3 . 7 . 3 6 12 . 5 8 8 . 3 24 8 33 2 11 2 Terminals 266 | . 4 . 5 . . 7 12 11 . . . . . 4 . 14 . 6 12 13 . 5 25 11 . 11 45 16 39 6 16 4 Fabricators 14 | . . . . . . . . . . . . . . 4 . . . . . . . . . . . . . . 10 . . . Repair Stations 15 | . . . . . . . . 2 . . . . . . . . . . . . . . 5 3 . . . . 5 . . . Recycling Units . | . . . . . . . . . . . . . . . . . . . . . . . . . . . . . . . . . Scanalyzers 14 | . . . . . . . . . . . . . . . . . . . . . . . . . . 3 3 . 8 . . . Garrison Access 6 | . . . . . . . 1 . . . . . . 1 . 1 . . . . . . . . . 2 . . 1 . . . Terminal Hacks 97 | . 2 . 1 . 2 1 5 3 . . . . . 1 . 4 . 3 5 2 . . 5 2 19 5 12 4 13 3 5 . Record 21 | . . . . . 1 . . . . . . . . . . . . . . 1 . . . . 19 . . . . . . . Part Schematic 2 | . . . . . . 1 . . . . . . . . . . . . . . . . . . . . 1 . . . . . Prototype ID Bank 4 | . . . . . . . 1 . . . . . . . . 1 . . . . . . 1 . . . 1 . . . . . Open Door 6 | . . . . . . . . . . . . . . . . . . 1 2 . . . . . . . . . . . 3 . Level Access Points 2 | . . . . . . . . . . . . . . . . 1 . . . . . . . . . . 1 . . . . . Branch Access Points 6 | . . . . . . . 1 1 . . . . . 1 . . . . . . . . 1 . . 1 . 1 . . . . Emergency Access Points 2 | . . . . . . . . . . . . . . . . 1 . . . . . . . . . . 1 . . . . . Machine Index 1 | . . . . . . . . . . . . . . . . . . . . . . . . . . . . . . 1 . . Terminal Index 4 | . . . . . . . . . . . . . . . . . . . . . . . . 1 . 1 1 1 . . . . Garrison Index 1 | . . . . . . . . . . . . . . . . . . . . . . . . . . 1 . . . . . . Unreport Threat 24 | . . . . . . . 1 2 . . . . . . . . . 1 2 1 . . 2 . . . 5 2 5 1 2 . Locate Traps 7 | . . . . . . . 1 . . . . . . . . . . 1 1 . . . . 1 . 1 1 . 1 . . . Recall Extermination 1 | . . . . . . . . . . . . . . . . . . . . . . . . . . . . . 1 . . . Recall Reinforcements 2 | . . . . . . . . . . . . . . . . . . . . . . . . . . . . . 2 . . . Recall Assault 1 | . . . . . . . . . . . . . . . . . . . . . . . . . . . . . . 1 . . Hauler Manifests 3 | . 1 . 1 . . . . . . . . . . . . . . . . . . . 1 . . . . . . . . . Zone Layout 9 | . 1 . . . . . 1 . . . . . . . . 1 . . . . . . . . . 1 1 . 4 . . . EX-Prototype ID Bank 1 | . . . . . 1 . . . . . . . . . . . . . . . . . . . . . . . . . . . Fabricator Hacks 3 | . . . . . . . . . . . . . . 1 . . . . . . . . . . . . . . 2 . . . Load Schematic 1 | . . . . . . . . . . . . . . . . . . . . . . . . . . . . . 1 . . . Build 2 | . . . . . . . . . . . . . . 1 . . . . . . . . . . . . . . 1 . . . Repair Station Hacks 10 | . . . . . . . . 2 . . . . . . . . . . . . . . 3 2 . . . . 3 . . . Scan Component 6 | . . . . . . . . 1 . . . . . . . . . . . . . . 2 1 . . . . 2 . . . Repair 4 | . . . . . . . . 1 . . . . . . . . . . . . . . 1 1 . . . . 1 . . . Recycling Unit Hacks . | . . . . . . . . . . . . . . . . . . . . . . . . . . . . . . . . . Scanalyzer 10 | . . . . . . . . . . . . . . . . . . . . . . . . . . 1 2 . 7 . . . Insert Component 10 | . . . . . . . . . . . . . . . . . . . . . . . . . . 1 2 . 7 . . . Garrison Access Hacks 6 | . . . . . . . 1 . . . . . . 1 . 1 . . . . . . . . . 2 . . 1 . . . Unlock Access 2 | . . . . . . . . . . . . . . 1 . 1 . . . . . . . . . . . . . . . . Seal Access 3 | . . . . . . . 1 . . . . . . . . . . . . . . . . . . 1 . . 1 . . . Coupler Status 1 | . . . . . . . . . . . . . . . . . . . . . . . . . . 1 . . . . . . Unauthorized Hacks 36 | . 2 . 2 . . 1 2 . . . . . . . . 3 . 1 1 . . 1 2 1 . 2 6 2 9 . . 1 Terminals 34 | . 2 . 2 . . 1 2 . . . . . . . . 3 . 1 1 . . 1 2 1 . 2 6 2 7 . . 1 Track 30 | . 2 . 1 . . 1 1 . . . . . . . . 2 . 1 1 . . 1 2 1 . 2 5 2 7 . . 1 Botnet 3 | . . . 1 . . . 1 . . . . . . . . 1 . . . . . . . . . . . . . . . . Operators 1 | . . . . . . . . . . . . . . . . . . . . . . . . . . . 1 . . . . . Fabricators 2 | . . . . . . . . . . . . . . . . . . . . . . . . . . . . . 2 . . . Prioritize 1 | . . . . . . . . . . . . . . . . . . . . . . . . . . . . . 1 . . . Siphon 1 | . . . . . . . . . . . . . . . . . . . . . . . . . . . . . 1 . . . Repair Stations . | . . . . . . . . . . . . . . . . . . . . . . . . . . . . . . . . . Recycling Units . | . . . . . . . . . . . . . . . . . . . . . . . . . . . . . . . . . Scanalyzers . | . . . . . . . . . . . . . . . . . . . . . . . . . . . . . . . . . Garrison Access . | . . . . . . . . . . . . . . . . . . . . . . . . . . . . . . . . . Data Cores Recovered 4 | . . . . . . . . 1 . . . . . . . . . . 1 . . . . . . . . . 1 . . 1 Used 1 | . . . . . . . . . . . . . . . . . . . . . . . . . . . . . . . . 1 Hacking Detections 72 | . 2 . 2 . . 1 3 6 . . . . . 3 . 5 . 3 4 5 . 2 4 2 . 5 7 3 8 2 3 2 Full Trace Events 1 | . . . . . . . . . . . . . . . . . . . 1 . . . . . . . . . . . . . Feedback Events 1 | . . . . . . . . . . . . . . . . . . . 1 . . . . . . . . . . . . . Corruption 1 | . . . . . . . . . . . . . . . . . . . 1 . . . . . . . . . . . . . Feedback Blocked . | . . . . . . . . . . . . . . . . . . . . . . . . . . . . . . . . . Robot Schematics Acquired . | . . . . . . . . . . . . . . . . . . . . . . . . . . . . . . . . . Robots Built . | . . . . . . . . . . . . . . . . . . . . . . . . . . . . . . . . . Matter . | . . . . . . . . . . . . . . . . . . . . . . . . . . . . . . . . . Time . | . . . . . . . . . . . . . . . . . . . . . . . . . . . . . . . . . Total Robot Build Rating . | . . . . . . . . . . . . . . . . . . . . . . . . . . . . . . . . . Part Schematics Acquired 2 | . . . . . . 1 . . . . . . . . . . . . . . . . . . . . 1 . . . . . Parts Built 2 | . . . . . . . . . . . . . . . . . . . . . . . . . . . . . 2 . . . Matter 512 | . . . . . . . . . . . . . . 256 . . . . . . . . . . . . . . 256 . . . Time 192 | . . . . . . . . . . . . . . 128 . . . . . . . . . . . . . . 64 . . . Total Part Build Rating 16 | . . . . . . . . . . . . . . . . . . . . . . . . . . . . . 16 . . . Parts Repaired 4 | . . . . . . . . 1 . . . . . . . . . . . . . . 1 1 . . . . 1 . . . Time 252 | . . . . . . . . 19 . . . . . . . . . . . . . . 89 108 . . . . 36 . . . Parts Recycled . | . . . . . . . . . . . . . . . . . . . . . . . . . . . . . . . . . Recycled Matter . | . . . . . . . . . . . . . . . . . . . . . . . . . . . . . . . . . Retrieved Matter . | . . . . . . . . . . . . . . . . . . . . . . . . . . . . . . . . . Retrieved Components . | . . . . . . . . . . . . . . . . . . . . . . . . . . . . . . . . . Parts Scanalyzed . | . . . . . . . . . . . . . . . . . . . . . . . . . . . . . . . . . Part Schematics Acquired . | . . . . . . . . . . . . . . . . . . . . . . . . . . . . . . . . . Parts Damaged . | . . . . . . . . . . . . . . . . . . . . . . . . . . . . . . . . . Bothacking | -11 -10 -10 -9 -9 -9 -8 -8 -7 -7 -7 -7 -7 -6 -6 -6 -6 -6 -5 -5 -5 -5 -5 -4 -4 -4 -3 -3 -2 -2 -2 -1 -1 ------------ Run | Scr Mat Min Mat Min Exi Min Mat Fac Low Low Zio Dee Pro Fac Gar Fac Gar Fac Ext Cet Arc Hub Fac Arm Lab Res Qua Res Tes Sec Acc Com Used RIF Installer 2 | . . . . . . . . . . . . . . . 1 . 1 . . . . . . . . . . . . . . . Program Shield 1 | . . . . . . . . . . . . . . . . . 1 . . . . . . . . . . . . . . . Robots Hacked 6 | . . . . . . . . . . . . . . . . . . 1 3 . . . . 2 . . . . . . . . Non-combat 3 | . . . . . . . . . . . . . . . . . . 1 . . . . . 2 . . . . . . . . Combat 1 | . . . . . . . . . . . . . . . . . . . 1 . . . . . . . . . . . . . Robot Hacks Applied 6 | . . . . . . . . . . . . . . . . . . 2 1 . . . . 3 . . . . . . . . parse_system 1 | . . . . . . . . . . . . . . . . . . . 1 . . . . . . . . . . . . . purge_threat 4 | . . . . . . . . . . . . . . . . . . 2 . . . . . 2 . . . . . . . . map_route 1 | . . . . . . . . . . . . . . . . . . . . . . . . 1 . . . . . . . . Manual 2 | . . . . . . . . . . . . . . . . . . . 2 . . . . . . . . . . . . . Relay Couplers Released 8 | . . . . . . . . . . . . . . . 7 . . . . . . . . . . 1 . . . . . . Machine Destruction 8 | . . . . . . . . . . . . . . . 7 . . . . . . . . . . 1 . . . . . . Attached 2 | . . . . . . . . . . . . . . . . . . 1 . . . . . 1 . . . . . . . . Robots Rewired 14 | . . . . . . . . . . 1 . . . . . . . . 9 . . . . 4 . . . . . . . . Allies Hacked 2 | . . . . . . . . . . . . . . . . . . . . . . . . 1 . . . . . . 1 . Hacks Repelled . | . . . . . . . . . . . . . . . . . . . . . . . . . . . . . . . . . Allies | -11 -10 -10 -9 -9 -9 -8 -8 -7 -7 -7 -7 -7 -6 -6 -6 -6 -6 -5 -5 -5 -5 -5 -4 -4 -4 -3 -3 -2 -2 -2 -1 -1 -------- Run | Scr Mat Min Mat Min Exi Min Mat Fac Low Low Zio Dee Pro Fac Gar Fac Gar Fac Ext Cet Arc Hub Fac Arm Lab Res Qua Res Tes Sec Acc Com Total Allies 36 | . . . . 1 . . . . . 1 6 . . . . . . . 15 . . . . 4 . . . . . . 3 6 Largest Group 11 | . . . . 1 . . . . . 1 6 6 . . . . . . 11 . . . . 4 . . . . . . 3 6 Highest-Rated Group 325 | . . . . 31 . . . . . 32 295 295 . . . . . . 325 . . . . 176 . . . . . . 138 87 Highest-Rated Ally 94 | . . . . 31 . . . . . 32 94 94 . . . . . . 81 . . . . 56 . . . . . . 46 15 Total Orders 2 | . . . . . . . . . . . . . . . . . . . . . . . . . . . . . . . . 2 RETURN 2 | . . . . . . . . . . . . . . . . . . . . . . . . . . . . . . . . 2 Ally Attacks 258 | . . . . 11 . 22 . . . 9 . 50 . . . . . . 109 . . . . 24 . . . . . . 25 8 Total Damage 6043 | . . . . 144 . 1034 . . . 166 . 776 . . . . . . 2137 . . . . 946 . . . . . . 695 145 Kills 44 | . . . . 4 . 3 . . . 1 . 7 . . . . . . 24 . . . . 3 . . . . . . 2 . Allies Corrupted 2 | . . . . . . . . . . . . . . . . . . . . . . . . . . . . . . . 2 . Allies Melted . | . . . . . . . . . . . . . . . . . . . . . . . . . . . . . . . . . Turrets Deployed 1 | . . . . . . 1 . . . . . . . . . . . . . . . . . . . . . . . . . . Intel | -11 -10 -10 -9 -9 -9 -8 -8 -7 -7 -7 -7 -7 -6 -6 -6 -6 -6 -5 -5 -5 -5 -5 -4 -4 -4 -3 -3 -2 -2 -2 -1 -1 ------- Run | Scr Mat Min Mat Min Exi Min Mat Fac Low Low Zio Dee Pro Fac Gar Fac Gar Fac Ext Cet Arc Hub Fac Arm Lab Res Qua Res Tes Sec Acc Com Robot Analysis Total . | . . . . . . . . . . . . . . . . . . . . . . . . . . . . . . . . . Derelict Logs Recovered 6 | . . . . 2 . . . . . 1 2 . 1 . . . . . . . . . . . . . . . . . . . Drone Launches 2 | . . . . . . . . . . . . . . . . . . . . . . . . . . . . . . . . 2 Drone Recoveries 2 | . . . . . . . . . . . . . . . . . . . . . . . . . . . . . . . . 2 Exploration | -11 -10 -10 -9 -9 -9 -8 -8 -7 -7 -7 -7 -7 -6 -6 -6 -6 -6 -5 -5 -5 -5 -5 -4 -4 -4 -3 -3 -2 -2 -2 -1 -1 ------------- Run | Scr Mat Min Mat Min Exi Min Mat Fac Low Low Zio Dee Pro Fac Gar Fac Gar Fac Ext Cet Arc Hub Fac Arm Lab Res Qua Res Tes Sec Acc Com Turns Passed 41267 | 6 1028 306 1155 548 3936 556 973 1876 837 716 2058 3959 732 696 1137 591 1110 797 1340 1066 781 563 1256 1229 1071 755 1524 1319 3055 1145 904 2242 Spaces Moved 16745 | 6 470 171 415 258 1922 224 378 826 353 246 1102 1800 332 283 278 270 504 147 608 204 85 207 399 420 294 327 508 497 1219 377 402 1213 Core 172 | . . . . . 3 . . . . . . . . . . . . . . . . . . . . . . . . . . 169 Treads 7112 | . 470 171 415 258 1166 224 378 826 353 246 1102 1502 . . . . . . . . . . . . . . . . . . . 1 Legs 9346 | 6 . . . . 753 . . . . . . 298 332 283 278 270 504 147 608 204 85 207 399 420 294 327 508 497 1219 377 402 928 Wheels . | . . . . . . . . . . . . . . . . . . . . . . . . . . . . . . . . . Hover . | . . . . . . . . . . . . . . . . . . . . . . . . . . . . . . . . . Flight 115 | . . . . . . . . . . . . . . . . . . . . . . . . . . . . . . . . 115 Fastest Speed 37 | 120 160 180 200 200 120 220 183 183 190 183 183 163 163 163 163 163 163 163 163 163 186 163 163 186 163 186 163 186 182 182 150 37 Average Speed 178 | 120 175 180 200 200 179 221 200 190 190 185 183 179 163 184 166 163 163 184 164 180 186 176 185 187 180 186 186 186 197 182 150 125 Slowest Speed 750 | 120 180 180 200 200 750 280 203 210 190 205 183 183 163 186 186 163 163 186 186 186 186 186 210 210 186 186 210 210 209 182 150 220 Overloaded Moves . | . . . . . . . . . . . . . . . . . . . . . . . . . . . . . . . . . Propulsion Burnouts . | . . . . . . . . . . . . . . . . . . . . . . . . . . . . . . . . . Robots Hopped 2 | . . . . . . . . . . . . . . . . . . . . . . . . . . . . . . . . 2 Cave-ins Triggered . | . . . . . . . . . . . . . . . . . . . . . . . . . . . . . . . . . Teleports 2 | . . . . . . . . . . . . . . . . . . . . . . . . . . . . . 2 . . . Exploration Rate (%) 47 | 2 88 45 37 65 82 63 50 26 57 49 86 73 57 8 42 11 68 7 78 70 73 29 16 35 96 12 57 9 90 15 13 48 Regions Visited 32 Branch Regions 19 Pre-discovered Areas 4 | . . . . . 1 . . . . 1 1 . 1 . . . . . . . . . . . . . . . . . . . Known Exits Taken 10 | . . . . . . . 1 1 1 . . . 1 1 . 1 . . . . . . 1 . . 1 1 1 . . . . Unknown Exits Taken 20 | 1 1 1 1 1 1 1 . . . 1 1 1 . . . . . 1 1 1 1 1 . 1 1 . . . 1 1 1 . Scrap Searched 10 | . . 2 . . . 1 . . . 1 2 . 4 . . . . . . . . . . . . . . . . . . . Spaces Dug 395 | . . . 3 7 . 12 22 2 32 10 . . 20 5 3 14 2 54 2 2 . 9 25 9 . 24 19 27 63 10 11 8 Terrain Destroyed 1797 | . 4 . 59 19 10 36 82 36 100 41 . 31 89 16 24 84 48 54 55 60 7 394 93 54 . 45 36 36 144 98 11 31 Melee 15 | . . . . . . . . 2 8 5 . . . . . . . . . . . . . . . . . . . . . . Projectile 566 | . . . . . . . . 1 . . . . 6 14 21 40 23 5 22 19 7 54 38 47 . 45 36 36 93 17 11 31 AOE 1216 | . 4 . 59 19 10 36 82 33 92 36 . 31 83 2 3 44 25 49 33 41 . 340 55 7 . . . . 51 81 . . Actions | -11 -10 -10 -9 -9 -9 -8 -8 -7 -7 -7 -7 -7 -6 -6 -6 -6 -6 -5 -5 -5 -5 -5 -4 -4 -4 -3 -3 -2 -2 -2 -1 -1 --------- Run | Scr Mat Min Mat Min Exi Min Mat Fac Low Low Zio Dee Pro Fac Gar Fac Gar Fac Ext Cet Arc Hub Fac Arm Lab Res Qua Res Tes Sec Acc Com Total 25476 | 5 584 170 587 280 2253 265 528 1042 444 386 1146 2392 468 416 886 347 731 658 872 813 685 293 807 710 841 461 1063 866 1612 632 583 1650 Wait 5337 | . 39 . 55 11 107 3 36 70 10 5 18 421 79 98 546 32 160 481 162 504 582 16 297 161 494 45 340 265 134 59 42 65 Move 16707 | 5 469 170 414 257 1921 223 377 825 352 245 1101 1799 331 282 276 269 502 146 607 203 84 206 398 419 293 326 507 496 1218 376 401 1209 Hop 2 | . . . . . . . . . . . . . . . . . . . . . . . . . . . . . . . . 2 Pick Up 307 | . 15 . 16 2 45 1 14 17 3 6 15 23 5 5 4 1 5 2 6 7 1 3 8 9 22 3 10 5 28 11 6 9 Fast Attach 112 | . 1 . 1 . 9 2 5 4 . 2 1 13 . 1 . . . . 3 5 . . 3 4 7 . 2 6 5 5 2 31 Attach 118 | . 1 . 8 . 8 4 2 5 1 10 1 2 2 . . . 1 2 2 2 . 2 1 3 1 2 3 2 5 17 10 21 Detach 68 | . . . 1 . 1 3 2 1 . 1 1 2 1 1 1 . 1 1 2 7 . 1 4 3 1 . . 1 3 10 9 10 Swap 217 | . 7 . 9 3 12 8 15 21 21 11 2 7 4 . 2 1 1 4 9 5 . 6 15 15 . 2 2 2 9 7 4 13 Drop 400 | . 5 . 3 1 47 3 18 24 1 2 7 39 5 6 9 1 7 6 13 19 6 3 14 13 20 2 19 19 30 19 6 33 Fire 2018 | . 42 . 77 6 103 16 58 70 48 89 . 15 41 23 38 42 34 16 57 61 12 56 67 83 3 81 179 70 179 113 98 241 Melee 87 | . . . . . . . . 4 8 5 . 70 . . . . . . . . . . . . . . . . . . . . Ram 2 | . . . . . . . . . . . . . . . . . . . . . . . . . . . . . . . . 2 Kick 4 | . . . . . . . . . . . . . . . . 1 . . . . . . . . . . 1 . 1 . . 1 Crush 12 | . 5 . 3 . . 2 1 1 . . . . . . . . . . . . . . . . . . . . . . . . Escape Stasis 63 | . . . . . . . . . . . . . . . 10 . 20 . . . . . . . . . . . . 15 5 13 Rewire 22 | . . . . . . . . . . 10 . 1 . . . . . . 11 . . . . . . . . . . . . . Trap . | . . . . . . . . . . . . . . . . . . . . . . . . . . . . . . . . . Miscellaneous . | . . . . . . . . . . . . . . . . . . . . . . . . . . . . . . . . . Route ------- -11/Scrapyard -10/Materials (discovered 3 exits: *Mat x2 / [*Min]) -10/Mines -9/Materials (discovered 2 exits: [*Min] / [*Sto]) -9/Mines (discovered 3 exits: *Mat x2 / *Exi) -9/Exiles (discovered 2 exits: *Min x2) -8/Mines -8/Materials (discovered 2 exits: *Fac x2) -7/Factory (discovered 4 exits: *Fac x2 / *Low x2) -7/Lower Caves -7/Lower Caves -7/Zion (discovered 2 exits: [*Dee] / [*Pro]) -7/Deep Caves -6/Proximity Caves -6/Factory (discovered 3 exits: Low x2 / Gar) -6/Garrison -6/Factory (discovered 5 exits: Fac x4 / Gar) -6/Garrison (discovered 3 exits: *Fac x3) -5/Factory (discovered 3 exits: Fac / [*Upp] / *Ext) -5/Extension (discovered 3 exits: *Fac x2 / *Cet) -5/Cetus (discovered 2 exits: *Fac / [*Arc]) -5/Archives (discovered 3 exits: *Fac / *Hub x2) -5/Hub_04(d) (discovered 3 exits: *Fac x3) -4/Factory (discovered 4 exits: Res / *Upp x2 / *Arm) -4/Armory (discovered 2 exits: Res / *Lab) -4/Lab -3/Research (discovered 2 exits: *Qua x2) -3/Quarantine -2/Research (discovered 2 exits: *Tes x2) -2/Testing (discovered 2 exits: *Acc / *Sec) -2/Section 7 -1/Access -1/Command History --------- Turn | Location | Event 1 | -11/Scrapyard | Discovered new exit (range 3) 7 | -11/Scrapyard | Entered Materials 118 | -10/Materials | Discovered new exit (range 15) 301 | -10/Materials | Build established: Mutant 590 | -10/Materials | Discovered new exit (range 16) 815 | -10/Materials | Build established: Hauler-Mutant 916 | -10/Materials | Discovered new exit (range 12) 1035 | -10/Materials | Entered Mines 1338 | -10/Mines | Discovered new exit (range 2) 1341 | -10/Mines | Entered Materials 1341 | -9/Materials | Evolved 2 slots: Utility x2 1409 | -9/Materials | Lost 3 parts (1n2w) 1955 | -9/Materials | Discovered new exit (range 7) 2322 | -9/Materials | Discovered new exit (range 7) 2496 | -9/Materials | Entered Mines 2497 | -9/Mines | Assembled infested the area 2502 | -9/Mines | Assisted by a Guerilla fighting off Assembled 2508 | -9/Mines | Destroyed YI-UF0 2513 | -9/Mines | Found Prototype Storage 2516 | -9/Mines | Identified YI-UF0's Bottomless Matter Pit 2681 | -9/Mines | Received a Rocket Launcher from a helpful Derelict 2783 | -9/Mines | Received a Mining Laser from a helpful Derelict 2838 | -9/Mines | Discovered new exit (range 7) 2866 | -9/Mines | Learned location of 2 exits from Materials 2878 | -9/Mines | Found a damaged Exp. Sensor Array with a note attached 2886 | -9/Mines | Found Prototype Device 2903 | -9/Mines | Learned Materials emergency access door positions 2921 | -9/Mines | Discovered new exit (range 13) 3036 | -9/Mines | Deemed a non-threat by the Exiles lab entrance 3036 | -9/Mines | Discovered new exit (range 5) 3044 | -9/Mines | Entered Exiles 3094 | -9/Exiles | Met 8R-AWN 3124 | -9/Exiles | Met EX-HEX 3186 | -9/Exiles | Met EX-BIN 3218 | -9/Exiles | Met EX-DEC 3354 | -9/Exiles | Learned location of Zion (-7) 3480 | -9/Exiles | Discovered new exit (range 10) 3619 | -9/Exiles | Aligned with FarCom system 3621 | -9/Exiles | Given EX-Vault access code 3669 | -9/Exiles | Opened EX-Vault 3681 | -9/Exiles | Found Potential Leg 3684 | -9/Exiles | Found Potential Leg 3691 | -9/Exiles | Found Gui. Plasma Cannon 3696 | -9/Exiles | Found AWS/Autocannon 3741 | -9/Exiles | Warned to stay clear of 0b10 Research branches 4155 | -9/Exiles | Discovered new exit (range 15) 5361 | -9/Exiles | Attacked by the Exiles 5536 | -9/Exiles | Destroyed 8R-AWN 5555 | -9/Exiles | Lost 10 parts (1p2n4u3w) 5847 | -9/Exiles | Build established: Scavenger-Mutant 5987 | -9/Exiles | Destroyed EX-HEX 6195 | -9/Exiles | Core integrity fell below 50% 6195 | -9/Exiles | Destroyed EX-DEC 6213 | -9/Exiles | Destroyed EX-BIN 6261 | -9/Exiles | Found Prototype Energy Gun 6261 | -9/Exiles | Identified AWS/EX-DEC 6449 | -9/Exiles | Found Deploy-a-Sentry 6622 | -9/Exiles | Build established: Hauler-Mutant 6980 | -9/Exiles | Stole four prototypes: Potential Leg, Gui. Plasma Cannon, AWS/Autocannon, Deploy-a-Sentry 6980 | -9/Exiles | Entered Mines 7012 | -8/Mines | ME-RLN came to Exiles' defense 7013 | -8/Mines | DAS Turret deployed 7019 | -8/Mines | ME-RLN assimilated allied T-07 Excavator 7045 | -8/Mines | Destroyed ME-RLN 7485 | -8/Mines | Discovered new exit (range 8) 7520 | -8/Mines | Central database locked down 7536 | -8/Mines | Entered Materials 7536 | -8/Materials | Evolved 2 slots: Propulsion x1, Utility x1 7537 | -8/Materials | Identified exit to Factory 8327 | -8/Materials | Destroyed 12 combat bots 8509 | -8/Materials | Entered Factory 8509 | -7/Factory | Evolved 2 slots: Utility x2 8510 | -7/Factory | Identified Exp. Sensor Array 9099 | -7/Factory | Repaired Arm. Treads 9564 | -7/Factory | Discovered new exit (range 12) 9609 | -7/Factory | Identified exit to Factory 9713 | -7/Factory | Identified exit to Lower Caves 9766 | -7/Factory | Discovered exit to Factory (range 15) 10385 | -7/Factory | Entered Lower Caves 10586 | -7/Lower Caves | Spotted Y4-9HZ(f) 10587 | -7/Lower Caves | Encountered a Master Thief 10587 | -7/Lower Caves | Spotted IP-15B(f) 10588 | -7/Lower Caves | Encountered a Master Thief 10589 | -7/Lower Caves | Potential Leg stolen by Master Thief 10589 | -7/Lower Caves | Destroyed Y4-9HZ(f) 10594 | -7/Lower Caves | Potential Leg stolen by Master Thief 10787 | -7/Lower Caves | Spotted PJ-RRH(f) 10788 | -7/Lower Caves | Encountered a Master Thief 10798 | -7/Lower Caves | Destroyed PJ-RRH(f) 10978 | -7/Lower Caves | Spotted B-75 Beast 11136 | -7/Lower Caves | Destroyed B-75 Beast 11213 | -7/Lower Caves | Discovered new exit (range 5) 11218 | -7/Lower Caves | Encountered a Warlord checkpoint 11219 | -7/Lower Caves | Identified exit to Lower Caves 11222 | -7/Lower Caves | Entered another Lower Caves area 11338 | -7/Lower Caves | Spotted B-75 Beast 11441 | -7/Lower Caves | Destroyed B-75 Beast 11464 | -7/Lower Caves | Spotted VG-Q1K(f) 11466 | -7/Lower Caves | Encountered a Master Thief 11469 | -7/Lower Caves | Lost 3 parts (3n) 11482 | -7/Lower Caves | Destroyed VG-Q1K(f) 11484 | -7/Lower Caves | Spotted W3-IHN(f) 11485 | -7/Lower Caves | Encountered a Master Thief 11487 | -7/Lower Caves | AWS/Autocannon stolen by Master Thief 11488 | -7/Lower Caves | Spotted 4X-R7S(f) 11489 | -7/Lower Caves | Encountered a Master Thief 11490 | -7/Lower Caves | Gui. Plasma Cannon stolen by Master Thief 11568 | -7/Lower Caves | Attracted the attention of an 0b10 outpost 11609 | -7/Lower Caves | Destroyed 8 combat bots 11622 | -7/Lower Caves | Spotted CT-F0I(f) 11624 | -7/Lower Caves | Encountered a Master Thief 11631 | -7/Lower Caves | Potential Leg stolen by Master Thief 11632 | -7/Lower Caves | Allies destroyed CT-F0I(f) 11676 | -7/Lower Caves | Spotted NX-Z7M(f) 11677 | -7/Lower Caves | Encountered a Master Thief 11692 | -7/Lower Caves | Destroyed NX-Z7M(f) 11698 | -7/Lower Caves | Spotted EY-XUG(f) 11699 | -7/Lower Caves | Encountered a Master Thief 11701 | -7/Lower Caves | Potential Leg stolen by Master Thief 11720 | -7/Lower Caves | Core integrity fell below 50% 11751 | -7/Lower Caves | Attracted the attention of an 0b10 checkpoint 11764 | -7/Lower Caves | Lost 4 parts (1p1n1u1w) 11782 | -7/Lower Caves | Destroyed 9 combat bots 11909 | -7/Lower Caves | Discovered new exit (range 16) 11938 | -7/Lower Caves | Entered Zion 12006 | -7/Zion | Acquired unknown access codes intercepted by a Zionite 12034 | -7/Zion | Received a hallucinogenic algorithm 12063 | -7/Zion | Discovered new exit (range 14) 12198 | -7/Zion | System corruption cleaned by Quarantine Array 12315 | -7/Zion | Learned 8 Factory zone layouts 12594 | -7/Zion | Learned location of Warlord (-4) 13349 | -7/Zion | Given A8's code to call for help 13522 | -7/Zion | Visited the Megawrench Repair Shop 13522 | -7/Zion | Megawrench repaired 11 parts 13622 | -7/Zion | Gained Derelict followers 13878 | -7/Zion | Opened final containment barrier to the Deep Caves 13907 | -7/Zion | Discovered new exit (range 3) 13907 | -7/Zion | Saw the warning signs outside the Deep Caves entrance 13940 | -7/Zion | Enhanced Grunt warped into view, answering call for help 13951 | -7/Zion | Enhanced Grunt warped into view, answering call for help 13996 | -7/Zion | Entered Deep Caves 13996 | -7/Deep Caves | Accompanied by 6 allies 14371 | -7/Deep Caves | Attacked by Z-Imprinter 14382 | -7/Deep Caves | Allies destroyed Z-Imprinter 14417 | -7/Deep Caves | Found Prototype Protection 14417 | -7/Deep Caves | Identified Zio. Weapon Casing 14631 | -7/Deep Caves | Found Prototype Protection 14631 | -7/Deep Caves | Identified Zio. Heavy Carapace 14719 | -7/Deep Caves | Found Zio. Weapon Casing 14804 | -7/Deep Caves | Found Zio. Weapon Casing 15343 | -7/Deep Caves | Found Prototype Device 15343 | -7/Deep Caves | Identified Exp. Thermal Shield 15609 | -7/Deep Caves | Build established: Scavenger-Mutant 15803 | -7/Deep Caves | Spotted as-23086 15834 | -7/Deep Caves | Destroyed as-23086 15840 | -7/Deep Caves | Found GOLEM Unit 16206 | -7/Deep Caves | Found Surveybot 24 Scanner 16209 | -7/Deep Caves | Found Surveybot 24 Chip 16220 | -7/Deep Caves | Build established: Hauler-Mutant 16667 | -7/Deep Caves | Exposed GOLEM chamber 16740 | -7/Deep Caves | Found GOLEM Unit 16746 | -7/Deep Caves | Found GOLEM Unit 16770 | -7/Deep Caves | Found GOLEM Unit 16943 | -7/Deep Caves | Discovered new exit (range 7) 17270 | -7/Deep Caves | Build established: Hauler-Golem 17665 | -7/Deep Caves | Found GOLEM Unit 17678 | -7/Deep Caves | Found GOLEM Unit 17955 | -7/Deep Caves | Entered Proximity Caves 18281 | -6/Proximity Caves | Received a Behemoth hack from an annoying Tinkerer 18517 | -6/Proximity Caves | Spotted 2M-YS6(f) 18519 | -6/Proximity Caves | Encountered a Master Thief 18519 | -6/Proximity Caves | Spotted BB-682(f) 18520 | -6/Proximity Caves | Encountered a Master Thief 18527 | -6/Proximity Caves | Destroyed 2M-YS6(f) 18530 | -6/Proximity Caves | Destroyed BB-682(f) 18533 | -6/Proximity Caves | Spotted NH-58I(f) 18534 | -6/Proximity Caves | Encountered a Master Thief 18534 | -6/Proximity Caves | Spotted QI-H2F(f) 18535 | -6/Proximity Caves | Encountered a Master Thief 18542 | -6/Proximity Caves | Destroyed NH-58I(f) 18545 | -6/Proximity Caves | Destroyed QI-H2F(f) 18546 | -6/Proximity Caves | Spotted H8-6R8(f) 18547 | -6/Proximity Caves | Spotted 2N-X7G(f) 18548 | -6/Proximity Caves | Encountered a Master Thief 18548 | -6/Proximity Caves | Encountered a Master Thief 18549 | -6/Proximity Caves | GOLEM Unit stolen by Master Thief 18552 | -6/Proximity Caves | GOLEM Unit stolen by Master Thief 18554 | -6/Proximity Caves | Destroyed 2N-X7G(f) 18589 | -6/Proximity Caves | Discovered exit to Factory (range 10) 18600 | -6/Proximity Caves | Learned location of Extension (-5) 18687 | -6/Proximity Caves | Entered Factory 18687 | -6/Factory | Evolved 2 slots: Power x1, Weapon x1 18845 | -6/Factory | Identified exit to Lower Caves 19381 | -6/Factory | Identified exit to Garrison 19383 | -6/Factory | Entered Garrison 19393 | -6/Garrison | Installed Relay Interface Framework 19460 | -6/Garrison | Triggered checkpoint 19522 | -6/Garrison | Garrison Relay disabled 19624 | -6/Garrison | Triggered checkpoint 19712 | -6/Garrison | Triggered checkpoint 19790 | -6/Garrison | Discovered new exit (range 10) 19823 | -6/Garrison | Triggered checkpoint 19877 | -6/Garrison | Garrison Relay disabled 20520 | -6/Garrison | Entered Factory 20719 | -6/Factory | Identified exit to Factory 21045 | -6/Factory | Garrison activated, responded to threat 21109 | -6/Factory | Identified exit to Garrison 21111 | -6/Factory | Entered Garrison 21397 | -6/Garrison | Triggered checkpoint 21406 | -6/Garrison | Triggered checkpoint 21557 | -6/Garrison | Discovered exit to Factory (range 10) 21630 | -6/Garrison | Triggered checkpoint 21717 | -6/Garrison | Discovered exit to Factory (range 15) 21903 | -6/Garrison | Discovered exit to Factory (range 15) 21934 | -6/Garrison | Expanded RIF knowledge: Program Shield 22126 | -6/Garrison | Found Quantum Capacitor 22221 | -6/Garrison | Entered Factory 22221 | -5/Factory | Evolved 2 slots: Utility x2 22337 | -5/Factory | Discovered new exit (range 22) 22485 | -5/Factory | Discovered new exit (range 24) 22493 | -5/Factory | Discovered new exit (range 24) 23018 | -5/Factory | Entered Extension 23082 | -5/Extension | Rescued a captive Derelict 23299 | -5/Extension | Energy Cycler disabled 23300 | -5/Extension | Rescued a captive Derelict 23301 | -5/Extension | Rescued a captive Derelict 23303 | -5/Extension | Rescued a captive Derelict 23312 | -5/Extension | Rescued a captive Derelict 23658 | -5/Extension | Build established: Commander-Golem 23795 | -5/Extension | Spotted B-75 Beast 23800 | -5/Extension | Befriended a Behemoth using the annoying Tinkerer's hack 23801 | -5/Extension | Spotted B-75 Beast 23809 | -5/Extension | Befriended a Behemoth using the annoying Tinkerer's hack 23814 | -5/Extension | Discovered new exit (range 16) 24015 | -5/Extension | Extracted ID and sensor layout for unrecognized location from A7's data core 24179 | -5/Extension | Discovered new exit (range 10) 24181 | -5/Extension | Discovered new exit (range 6) 24358 | -5/Extension | Entered Cetus 24379 | -5/Cetus | Spotted Cetus Guard 24379 | -5/Cetus | Spotted Cetus Guard 24382 | -5/Cetus | Spotted Cetus Guard 24390 | -5/Cetus | Destroyed Cetus Guard 24398 | -5/Cetus | Destroyed Cetus Guard 24399 | -5/Cetus | Spotted Cetus Guard 24413 | -5/Cetus | Destroyed Cetus Guard 24420 | -5/Cetus | Destroyed Cetus Guard 24542 | -5/Cetus | Cetus Manufacturing Module disabled 24638 | -5/Cetus | Found a strange terminal 24672 | -5/Cetus | Discovered new exit (range 15) 24684 | -5/Cetus | Build established: Hauler-Golem 24706 | -5/Cetus | Spotted Cetus Guard 24707 | -5/Cetus | Spotted Cetus Guard 24711 | -5/Cetus | Destroyed Cetus Guard 24711 | -5/Cetus | Spotted Cetus Guard 24727 | -5/Cetus | Spotted Cetus Guard 24732 | -5/Cetus | Destroyed Cetus Guard 24754 | -5/Cetus | Destroyed Cetus Guard 24767 | -5/Cetus | Destroyed Cetus Guard 24796 | -5/Cetus | Discovered new exit (range 15) 24806 | -5/Cetus | Met Revision 17 24808 | -5/Cetus | Destroyed Revision 17 25424 | -5/Cetus | Entered Archives 25619 | -5/Archives | Discovered new exit (range 16) 25647 | -5/Archives | Discovered new exit (range 16) 25671 | -5/Archives | Discovered new exit (range 14) 26205 | -5/Archives | Entered Hub_04(d) 26225 | -5/Hub_04(d) | Discovered new exit (range 22) 26444 | -5/Hub_04(d) | Discovered new exit (range 24) 26455 | -5/Hub_04(d) | Discovered new exit (range 24) 26611 | -5/Hub_04(d) | Lost 3 parts (2u1w) 26760 | -5/Hub_04(d) | Network Hub disabled 26761 | -5/Hub_04(d) | Core integrity fell below 50% 26765 | -5/Hub_04(d) | Network Hub disabled 26768 | -5/Hub_04(d) | Entered Factory 26768 | -4/Factory | Evolved 2 slots: Utility x2 26769 | -4/Factory | Discovered new exit (range 16) 27044 | -4/Factory | Discovered new exit (range 24) 27150 | -4/Factory | Repaired Enh. Flexi-carbon Leg 27178 | -4/Factory | Identified exit to Upper Caves 27178 | -4/Factory | Identified exit to Armory 28024 | -4/Factory | Entered Armory 28183 | -4/Armory | Repaired Centrium Medium Armor Plating 28972 | -4/Armory | Discovered new exit (range 19) 28986 | -4/Armory | Discovered new exit (range 24) 29064 | -4/Armory | First assault squad dispatched 29253 | -4/Armory | Entered Lab 29253 | -4/Lab | Discovered new exit (range 9) 29274 | -4/Lab | Hidden lab's door opened automatically 29274 | -4/Lab | Sensor layout match revealed 29275 | -4/Lab | Gained access to the hidden lab's interior 29343 | -4/Lab | Found Prototype Energy Gun 29343 | -4/Lab | Identified Hyp. EM Gauss Rifle 29349 | -4/Lab | Found Prototype Energy Gun 29349 | -4/Lab | Identified Tachyon Dispersion Ray 29358 | -4/Lab | Found Prototype Protection 29358 | -4/Lab | Identified Exp. Powered Armor 29401 | -4/Lab | Found Prototype Special Weapon 29426 | -4/Lab | Unable to decrypt terminal 29491 | -4/Lab | Found Alien Artifact 29491 | -4/Lab | Identified Core Regenerator 29491 | -4/Lab | Used Core Regenerator, restored core integrity (+217) 29504 | -4/Lab | Found Alien Artifact 29504 | -4/Lab | Identified Integrated Reactor 29504 | -4/Lab | Installed Integrated Reactor, increased core energy generation (+2%) 29792 | -4/Lab | Build established: Golem 30140 | -4/Lab | Found Prototype Hackware 30186 | -4/Lab | Found Alien Artifact 30206 | -4/Lab | Found Alien Artifact 30324 | -4/Lab | Entered Research 30324 | -3/Research | Evolved 2 slots: Utility x2 30424 | -3/Research | Identified exit to Quarantine 30472 | -3/Research | Build established: Hauler-Mutant 30747 | -3/Research | Destroyed 9 combat bots 30794 | -3/Research | Identified Transdimensional Reconstructor 31079 | -3/Research | Entered Quarantine 31079 | -3/Quarantine | Identified Core Reset Matrix 31079 | -3/Quarantine | Used Core Reset Matrix 31083 | -3/Quarantine | Detected hypermatrix surge 31083 | -3/Quarantine | Sensed 16 artifacts in vicinity 31097 | -3/Quarantine | Found Matter Drive 31134 | -3/Quarantine | Found Subatomic Replicator 31451 | -3/Quarantine | Identified Deep Network Scanner 31454 | -3/Quarantine | Identified exit to Research 31508 | -3/Quarantine | Found Transdimensional Reconstructor 31563 | -3/Quarantine | Found Phase Redirector 31601 | -3/Quarantine | Build established: Hauler-Golem 31648 | -3/Quarantine | Identified Gui. Remote Datajack 31749 | -3/Quarantine | Found Phase Armor 32603 | -3/Quarantine | Entered Research 32603 | -2/Research | Evolved 2 slots: Utility x2 33081 | -2/Research | Discovered new exit (range 4) 33569 | -2/Research | Identified exit to Testing 33922 | -2/Research | Entered Testing 33975 | -2/Testing | Repaired Centrium Medium Armor Plating 34130 | -2/Testing | Found Prototype Energy Cannon 34196 | -2/Testing | Found Prototype Ballistic Cannon 34371 | -2/Testing | Identified Omega Cannon 34371 | -2/Testing | Identified Null Cannon 34411 | -2/Testing | Build established: Hauler-Mutant 34414 | -2/Testing | Found Prototype Device 34515 | -2/Testing | Discovered new exit (range 15) 34581 | -2/Testing | Fabricated Adv. Force Field (x2) 34618 | -2/Testing | Local fabrication network quarantined 34634 | -2/Testing | Identified Exp. Thermal Shield 34823 | -2/Testing | Found Prototype Ballistic Cannon 35074 | -2/Testing | Found Prototype Protection 35096 | -2/Testing | Found Prototype Protection 35096 | -2/Testing | Identified Med. Regenerative Plating 35414 | -2/Testing | Found Prototype Device 35414 | -2/Testing | Identified AEGIS Remote Shield 35775 | -2/Testing | Build established: Hauler-Gunner 36163 | -2/Testing | Spotted Alpha 7 36182 | -2/Testing | Scanned by Researcher 36198 | -2/Testing | Destroyed Alpha 7 36212 | -2/Testing | Spotted G7-6NC(L) 36212 | -2/Testing | Spotted YL-5XT(L) 36224 | -2/Testing | Found Unknown Device 36225 | -2/Testing | Identified Antimissile System 36243 | -2/Testing | Warped through subspace 36288 | -2/Testing | Warped through subspace 36520 | -2/Testing | Build established: Hauler-Golem 36842 | -2/Testing | Spotted Fortress 36970 | -2/Testing | Discovered new exit (range 5) 36977 | -2/Testing | Entered Section 7 36978 | -2/Section 7 | Sensed 17 artifacts in vicinity 36979 | -2/Section 7 | Used Subatomic Replicator to replicate AEGIS Remote Shield 37004 | -2/Section 7 | Identified SHELL Armor 37099 | -2/Section 7 | Spotted S7 Guard 37133 | -2/Section 7 | Destroyed S7 Guard 37189 | -2/Section 7 | Found Core Membrane 37189 | -2/Section 7 | Installed Core Membrane, gained immunity to corruption 37261 | -2/Section 7 | Identified Perforator 37270 | -2/Section 7 | First assault squad dispatched 37289 | -2/Section 7 | Destroyed 7 combat bots 37478 | -2/Section 7 | Build established: Hauler-Mutant 37549 | -2/Section 7 | Destroyed 7 combat bots 37780 | -2/Section 7 | Destroyed 11 combat bots 38012 | -2/Section 7 | Scanned by Researcher 38100 | -2/Section 7 | Discovered new exit (range 4) 38122 | -2/Section 7 | Entered Access 38122 | -1/Access | Evolved 2 slots: Propulsion x2 38462 | -1/Access | Build established: Scavenger-Mutant 38622 | -1/Access | First assault squad dispatched 38677 | -1/Access | Intercept squad dispatched 38690 | -1/Access | Spotted Tracker 38691 | -1/Access | Destroyed Tracker 38691 | -1/Access | Spotted Tracker 38725 | -1/Access | Spotted Combat Programmer 38725 | -1/Access | Spotted Combat Programmer 38742 | -1/Access | Destroyed Combat Programmer 38746 | -1/Access | Destroyed Combat Programmer 39016 | -1/Access | Discovered new exit (range 7) 39026 | -1/Access | Entered Command 39757 | -1/Command | Found Prototype Device 40062 | -1/Command | First assault squad dispatched 40241 | -1/Command | Destroyed 8 combat bots 40393 | -1/Command | High security lockdown imminent 40453 | -1/Command | Destroyed 9 combat bots 40473 | -1/Command | High security lockdown engaged 40625 | -1/Command | Destroyed 16 combat bots 40682 | -1/Command | Spotted Investigator 40683 | -1/Command | Destroyed Investigator 40710 | -1/Command | Destroyed 13 combat bots 40737 | -1/Command | Spotted Combat Programmer 40753 | -1/Command | Spotted M Guard 40753 | -1/Command | Spotted Combat Programmer 40766 | -1/Command | Spotted M Guard 40770 | -1/Command | Destroyed Combat Programmer 40779 | -1/Command | Destroyed Striker 40781 | -1/Command | Spotted Executioner 40797 | -1/Command | Destroyed Executioner 40865 | -1/Command | Destroyed Combat Programmer 40896 | -1/Command | Destroyed 22 combat bots 40970 | -1/Command | Met MAIN.C 40991 | -1/Command | Spotted Executioner 40991 | -1/Command | 0b10 Conduit disabled 40991 | -1/Command | Spotted Striker 41001 | -1/Command | Spotted Striker 41001 | -1/Command | Spotted Striker 41002 | -1/Command | Spotted Executioner 41002 | -1/Command | Spotted Striker 41004 | -1/Command | Spotted Striker 41004 | -1/Command | Spotted Executioner 41078 | -1/Command | Destroyed Striker 41083 | -1/Command | Destroyed Executioner 41120 | -1/Command | Released all parts (17) 41138 | -1/Command | Destroyed 8 combat bots 41181 | -1/Command | Core integrity fell below 50% 41190 | -1/Command | Spotted B-99 Colossus 41213 | -1/Command | Emitted hypermatrix ping 41218 | -1/Command | Assembled emerged from beneath the floor 41218 | -1/Command | Core integrity fell below 20% 41244 | -1/Command | Lost 6 parts (1p4n1u) 41268 | -1/Command | Destroyed by S-43 Plague with Heavy Machine Gun Last Messages --------------- 41208_ Slug penetrates B-99 Colossus. 41208_ Penetrated by Slug. 41208_ Slug penetrates L-61 Swordsman. 41212_ Knocked back. 41212_ Slug penetrates Wall. 41212_ Penetrated by Slug. 41212_ Slug penetrates Wall. 41212_ Penetrated by Slug. 41212_ Centrium Light Armor Plating destroyed. 41213_ Emitted hypermatrix ping. 41213_ Impulse Thruster Array destroyed. 41219_ G-73 Enforcer knocked back. 41219_ Slug penetrates Wall. 41219_ Slug penetrates as-49504. 41219_ Slug penetrates Wall. 41220_ as-98561 destroyed. 41242_ Slammed into L-61 Swordsman. 41243_ Slammed into G-73 Enforcer. 41244_ Slug penetrates Wall. 41268_ Destroyed Unknown Flight Unit. Map ----- +----------------------------------------------------+ | ???# "" #???# #???????????????????? | | #### #???# #???????????????????? | | + ##### #???????????????????? | | #?? ??# # #???????????????????? | | #####"##### #######"###+#############????????? | | % #????????? | | #????????? | | ^ #????????? | | ## !!! ##"#########+#+#????????? | | ?# !!! # ??????# ?????????? | | ?+ !!! # ] ??????# ???????? | | ?# # ?????#[ #??????? | | ?# # ?????# #??????? | | ?#### ################ ########??# #??????? | | ????# #??????????????# ## #??# #??????? | | ????# #??????????????# #??########??????? | | ????# #??????????????# #????????????????? | | ????# ###????????????# #????????????????? | | ????# +?????############# #??????#######???? | | ????# #?????# [ ##" ######??""""" #???? | | ##### #?????# #?# # #??""R"" #???? | | #?????# ] #?# # =#???" " #???? | | % +?????# #?# + #??? #???? | | #?????#* #?# # #???? ! ????? | | #### #?????# #?# # ]]#???? ????? | | #??????????# @#?# #? ]]#????? ?????? | | #??????????##+####+##s##?# #?####????? ?????? | | #???????????# #??# # ###%############+##????? | | #???????????# #??# # " #????? | | ####+####???# #??# #s ### ########### #????? | | # #???# #??# ## ##?# #?????????# #????? | | + #???# #??# ## #??# #?????????# #????? | | # #???# #??# ## #??# #?????????# #????? | | + #??## ##?# ## #??#+#??#####??# #????? | | # # ## ### ## #??????? "" ??# #????? | | ####+#### #? ??????? """" ?# #????? | | #??#### ### #? ??# """" ?# #????? | | ########+###? ?? ??# "" # #????? | | + #? ?? ??# # #????? | | ########### #? ?? ??# + #????? | | #?????????# #? ?? ??# # #????? | | ?????###?# #? ?? ### # #????? | | ????? ?#######? ?? ## ?# #????# | | ????? ????????# #? ?# ?# #????# | | ????? ????????# # ??# ??# #????# | | ????? ????????# ??# ??# #????# | | # #?????? ????????# ???#########+#### ##???# | | ????????? ????????+ ??? % "###?# | | ????????##/##???????# #??????????#####"#" "?" | | ###### ######### #??????????####*# " "?" | +----------------------------------------------------+ Best States ------------- Heat Dissipation 116 Coolant Potential 100 Energy Generation 55 Energy Capacity 2600 Matter Stores 1800 Matter Capacity 1800 Sight Range 16 Robot Scan Range 30 Terrain Scan Range 24 Terrain Scan Density 2010 Jamming Range 16 Additional Mass Support 10 Base Temperature (-) 200 Corruption Prevention 20 Armor Coverage 1300 Resistance: KI 30 Resistance: TH 30 Resistance: EX 15 Resistance: EM 15 Resistance: I 15 Resistance: S 15 Resistance: P 15 Utility Shielding 66 Weapon Shielding 100 Phase Shifting 10 Evasion (%) 62 Targeting Accuracy 16 Core Analysis 10 Armor Integrity Analysis 66 Recoil Reduction 6 Matter Filtering 30 Particle Charging 25 Offensive Hacking 25 Defensive Hacking 10 Item Schematics ----------------- Adv. Force Field | -3/Quarantine | Hacked Robot Schematics ------------------ None Fabricated ------------ Adv. Force Field | x2 | -2/Testing Alien Tech Used ----------------- Core Regenerator Integrated Reactor Core Reset Matrix Matter Drive Phase Redirector Phase Armor Transdimensional Reconstructor Subatomic Replicator Core Membrane Achievements -------------- Left-hand Path Challenges ------------ None Game ------ Seed CooledCooledSteel Manual? 0 Play Time 08:28:52 Cumulative 781.8 hours Start 2020.08.22 @ 01:09:14 End 2020.08.23 @ 20:33:48 Sessions 5 Manual Loads 0 Difficulty Rogue Special Mode None Game No. 302 Rogue 302 Adventurer 0 Explorer 0 Win Type - Total 38 Types 9/11/7/3/1/1/6 Lore% 95 Gallery% 93 Achievement% 82 Wizard Run 0 Options --------- ASCII 0 Keyboard 0 Movement Numpad Keybinds 0 Fullscreen 2 Font 24/Smallcaps Map View 76x50 Tactical HUD 1 Map Filters NONE Filters NONE Steam 1 RUN: 0a1ac04f-3ec9-41c3-ad2c-1cce8c853344